Workbook

Sheet Rekenblad
A1: Melding en berekening straatwerk, 2017 | O1: 2017_1
A2: volgens de Richtlijn Tarieven (graaf) werkzaamheden Telecom dd 12-03-2004. | M2: Datum: | N2: =NOW() -> 2016-11-15T11:46:00.020
A3: AANVRAGER: | B3: ………………………………. | E3: adres: | F3: …………………………………………………………………… | L3: Kontaktpersoon: | N3: …………………..
A4: NAAM PROJECT: | L4: E-mail: | M4: ……………………………….
A5: PLAATS: | B5: ………………………………………………………………………………………………….. | L5: telefoon: | N5: …………………..
A6: GEMEENTE: | E6: adres: | F6: =IF($B$7>0.1,VLOOKUP(B7,'Gemeenten met categorie'!A3:F484,4),"") -> Postbus 20, 6560 AA GROESBEEK | L6: mobiel: | N6: …………………..
B7: 31 | D7: =IF($B$7>0.1,VLOOKUP($B$7,'Gemeenten met categorie'!A2:D493,3),"") -> 1
A8: Uitvoering:
B9: 1
A10: Gemeentelijke gegevens: | D10: Verzamelde informatie: | H10: Task: | I10: Discipline: | N10: bedrag:
A11: Kontaktpersoon gem.: | B11: ………………………. | D11: Inkoopordernr.: | F11: Projektnr: | H11: A | I11: Herstel & onderhoud uitgevoerd door de wegbeheerder: | N11: =SUM(N35:N47) -> 0
A12: E-mail: | B12: ……………………… | D12: ……………… | F12: …………….
A13: telefoon: | B13: ……………………… | D13: Datum opbreking: | F13: ……………….. | H13: B1 | I13: Herstel & onderhoud aanbieder | N13: =IF($B$9=2,(SUM($N$50:$N$61)),0) -> 0
A14: mobiel: | B14: ……………………… | D14: Datum herstel: | F14: ……………….. | H14: B2 | I14: Herstel aanb. & onderh. wegbeh. | N14: =IF(($B$9=3),(SUM($N$50:$N$61)),0) -> 0
A15: Opdrachtnummer : | B15: ……………………… | D15: Deellevering: | F15: ……………….. | H15: C | I15: Herstel wegbeheerder voor al- gehele herbestrating | N15: =SUM(N64:N67) -> 0
A16: In te vullen gegevens: | D16: Laatste levering: | F16: ………………..
A17: = Richtlijn tarief | D17: Uitvoerende aannemer: | F17: ……………….. | H17: D | I17: Overige tarieven, herstel en onderhoud beheerder | N17: =SUM(N69:N76) -> 0
A18: = Af te spreken projektprijs | F18: …………………
F19: ………………… | H19: Totaal kosten: | N19: =SUM(N11:N18) -> 0
A20: OMSCHRIJVING STRAATWERK / BERMEN;
A21: =+IF(AND(D25>0,D25<0.3),("invoer fout breedte tegels"),IF(AND(D26>0,D26<0.3),("invoer fout breedte tegels"),IF(AND(D27>0,D27<0.3),("invoer fout breedte tegels"),""))) ->  | E21: sleuf | I21: opsluiting
A22: =+IF(AND(G25>0,G25<0.25),("invoer fout breedte klinkers"),IF(AND(G26>0,G26<0.25),("invoer fout breedte klinkers"),IF(AND(G27>0,G27<0.25),("invoer fout breedte klinkers"),""))) ->  | C22: tegels * | F22: klinkers * | I22: trottoir-banden: | K22: opsluit- / koprolband
A24: adres | C24: lengte | D24: breedte | E24: m2 | F24: lengte | G24: breedte | H24: m2 | I24: m1 | K24: m1
A25: …………………………………. | E25: =IF($D$25>=0.3,($C$25*$D$25),"") ->  | H25: =IF($G$25>=0.25,($F$25*$G$25),"") -> 
A26: …………………………………. | E26: =IF($D$26>=0.3,($C$26*$D$26),"") ->  | H26: =IF($G$26>=0.25,($F$26*$G$26),"") -> 
A27: …………………………………. | E27: =IF($D$27>=0.3,($C$27*$D$27),"") ->  | H27: =IF($G$27>=0.25,($F$27*$G$27),"") -> 
C28: =SUM(C25:C27) -> 0 | E28: =SUM(E25:E27) -> 0 | F28: =SUM(F25:F27) -> 0 | H28: =SUM(H25:H27) -> 0 | I28: =SUM(I25:J27) -> 0 | K28: =SUM(K25:L27) -> 0 | M28: =SUM(M25:M27) -> 0 | N28: =SUM(N25:N27) -> 0
C29: Bermen, gazon all in* | F29: Bomen en Struiken | K29: Asfalt, all in* | M29: Dikte | N29: Prijs
A30: adres | C30: lengte | D30: breedte | E30: m2 | G30: eenh. | H30: prijs | I30: kosten | K30: lengte | L30: breedte | M30: in cm | N30: m2/cm | O30: kosten
A31: ………………………………… | E31: =IF($C31>0,$C31*($D31+0),"") ->  | F31: Bomen | G31: 0 | H31: 0 | I31: =IF($G31>0,$H31*($G31+0),"") ->  | O31: =IF($K31>0,($K$31*$L$31*$M$31)*($N$31),"") -> 
A32: ………………………………… | E32: =IF($C32>0,$C32*($D32+0),"") ->  | F32: Struiken | G32: 0 | H32: 0 | I32: =IF($G32>0,$H32*($G32+0),"") ->  | K32: 0 | L32: 0 | M32: 0 | N32: 0 | O32: =IF($K32>0,($K$32*$L$32*$M$32)*($N$32),"") -> 
A33: Specificatie: | E33: =SUM(E31:E32) -> 0 | F33: =SUM(F31:F32) -> 0 | G33: =G31 -> 0 | H33: =SUM(H31:I32) -> 0 | K33: =SUM(M31:M32) -> 0 | N33: =SUM(O31:O32) -> 0
A34: Tarief: A. | C34: * de gedifinieerde sleufbreedte dient te worden aangegeven ,automatisch wordt de gatvergrotingstoeslag toegevoegd volgens de gestelde norm.
A35: Uitvoering, onderhoud & beheer klinkers: | D35: =<15m² | G35: =IF(AND($B$9=1,K35>0),('Gemeenten met categorie'!K2),0) -> 0 | H35: m² | I35: à | J35: € | K35: =IF(($B$9=1),('Gemeenten met categorie'!I2),"") -> 0 | L35: per m² | M35: = € | N35: =IF(AND('Gemeenten met categorie'!K2>=0.29,K35>10),('Gemeenten met categorie'!K2*K35),"") -> 
A36: Uitvoering, onderhoud & beheer klinkers: | D36: >15m² | G36: =IF(AND($B$9=1,K36>0),('Gemeenten met categorie'!K3),0) -> 0 | H36: m² | I36: à | J36: € | K36: =IF(($B$9=1),('Gemeenten met categorie'!I3),"") -> 0 | L36: per m² | M36: = € | N36: =IF(AND('Gemeenten met categorie'!K3>1,K36>10),('Gemeenten met categorie'!K3*K36),"") -> 
A37: Uitvoering, onderhoud & beheer klinkers: | D37: >100m² | G37: =IF(AND($B$9=1,K37>0),('Gemeenten met categorie'!K4),0) -> 0 | H37: m² | I37: à | J37: € | K37: =IF(($B$9=1),('Gemeenten met categorie'!I4),"") -> 0 | L37: per m² | M37: = € | N37: =IF(AND('Gemeenten met categorie'!K4>=1,K37>10),('Gemeenten met categorie'!K4*K37),"") -> 
A38: Degeneratie klinkers: | D38: per reparatie =<15m² | G38: =IF(AND($B$9=1,K38>0),('Gemeenten met categorie'!K5),0) -> 0 | H38: eenh. | I38: à | J38: € | K38: =IF(($B$9=1),('Gemeenten met categorie'!I5),"") -> 0 | L38: per eenh. | M38: = € | N38: =IF(AND('Gemeenten met categorie'!K5>=1,K38>0.11),('Gemeenten met categorie'!K5*K38),"") -> 
B39: Degeneratie per m1: | D39: >15m² | G39: =IF(AND($B$9=1,K39>0),('Gemeenten met categorie'!K7),0) -> 0 | H39: m | I39: à | J39: € | K39: =IF(($B$9=1),('Gemeenten met categorie'!I7),"") -> 0 | L39: per m | M39: = € | N39: =IF(AND('Gemeenten met categorie'!K7>=1,K39>0.1),('Gemeenten met categorie'!K7*K39),"") -> 
B40: Degeneratie per m1: | D40: >100m² | G40: =IF(AND($B$9=1,K40>0),('Gemeenten met categorie'!K8),0) -> 0 | H40: m | I40: à | J40: € | K40: =IF(($B$9=1),('Gemeenten met categorie'!I8),"") -> 0 | L40: per m | M40: = € | N40: =IF(AND('Gemeenten met categorie'!K8>=1,K40>0.1),('Gemeenten met categorie'!K8*K40),"") -> 
A42: Uitvoering, onderhoud & beheer tegels: | D42: =<15m² | G42: =IF(AND($B$9=1,K42>0),('Gemeenten met categorie'!K9),0) -> 0 | H42: m² | I42: à | J42: € | K42: =IF(($B$9=1),('Gemeenten met categorie'!I9),"") -> 0 | L42: per m² | M42: = € | N42: =IF(AND(G42>0,K42>0),(G42*K42),"") -> 
A43: Uitvoering, onderhoud & beheer tegels: | D43: >15m² | G43: =IF(AND($B$9=1,K43>0),('Gemeenten met categorie'!K10),0) -> 0 | H43: m² | I43: à | J43: € | K43: =IF(($B$9=1),('Gemeenten met categorie'!I10),"") -> 0 | L43: per m² | M43: = €
A44: Uitvoering, onderhoud & beheer tegels: | D44: >100m² | G44: =IF(AND($B$9=1,K44>0),('Gemeenten met categorie'!K11),0) -> 0 | H44: m² | I44: à | J44: € | K44: =IF(($B$9=1),('Gemeenten met categorie'!I11),"") -> 0 | L44: per m² | M44: = €
A45: Degeneratie tegels: | D45: per reparatie =<15m² | G45: =IF(AND($B$9=1,K45>0),('Gemeenten met categorie'!K12),0) -> 0 | H45: eenh. | I45: à | J45: € | K45: =IF(($B$9=1),('Gemeenten met categorie'!I12),"") -> 0 | L45: per eenh. | M45: = €
B46: Degeneratie per m1: | D46: =<15m² | G46: =IF(AND($B$9=1,K46>0),('Gemeenten met categorie'!$K$14),0) -> 0 | H46: m | I46: à | J46: € | K46: =IF(($B$9=1),('Gemeenten met categorie'!$I$14),"") -> 0 | L46: per m | M46: = € | N46: =IF(AND(G46>0,K46>0),(G46*K46),"") -> 
B47: Degeneratie per m1: | D47: >100m² | G47: =IF(AND($B$9=1,K47>0),('Gemeenten met categorie'!$K$15),0) -> 0 | H47: m | I47: à | J47: € | K47: =IF(($B$9=1),('Gemeenten met categorie'!$I$15),"") -> 0 | L47: per m | M47: = €
A50: Tarief: B 1 & 2. | B50: Degeneratie klinkers: | D50: per reparatie =<15m² | G50: =IF(AND($B$9>1,$B$9<4,K50>0),('Gemeenten met categorie'!K18),0) -> 0 | H50: eenh. | I50: à | J50: € | K50: =IF(AND($B$9>1,$B$9<4),('Gemeenten met categorie'!I18),"") ->  | L50: per eenh. | M50: = € | N50: =IF(AND(G50>0,K50>0),(G50*K50),"") -> 
B51: Degeneratie klinkers: | D51: =>15m² | G51: =IF(AND($B$9>1,$B$9<4,K51>0),('Gemeenten met categorie'!K19),0) -> 0 | H51: m | I51: à | J51: € | K51: =IF(AND($B$9>1,$B$9<4,$H$28>15),('Gemeenten met categorie'!I19),"") ->  | L51: per m | M51: = € | N51: =IF(AND(G51>0,K51>0),(G51*K51),"") -> 
B52: Beheerskosten klinkers: | D52: =<15m² | G52: =IF(AND($B$9>1,$B$9<4,K52>0),('Gemeenten met categorie'!K22),0) -> 0 | H52: m² | I52: à | J52: € | K52: =IF(AND($B$9>1,$B$9<4,$H$28<=15),('Gemeenten met categorie'!I22),"") ->  | L52: per m² | M52: = €
B53: Beheerskosten klinkers: | D53: >15m² | G53: =IF(AND($B$9>1,$B$9<4,K53>0),('Gemeenten met categorie'!$K$23),0) -> 0 | H53: m² | I53: à | J53: € | K53: =IF(AND($B$9>1,$B$9<4,$H$28>15),('Gemeenten met categorie'!$I$23),"") ->  | L53: per m² | M53: = €
B54: Onderhoud klinkers: | D54: =<15m² | G54: =IF(AND($B$9=3,K54>0),('Gemeenten met categorie'!$K$28),0) -> 0 | H54: m² | I54: à | J54: € | K54: =IF(AND($B$9=3),('Gemeenten met categorie'!$I$28),"") ->  | L54: per m² | M54: = €
B55: Onderhoud klinkers: | D55: >15m² | G55: =IF(AND($B$9=3,K55>0),('Gemeenten met categorie'!$K$29),0) -> 0 | H55: m² | I55: à | J55: € | K55: =IF(AND($B$9=3),('Gemeenten met categorie'!$I$29),"") ->  | L55: per m² | M55: = €
B56: Onderhoud tegels: | D56: =<15m² | G56: =IF(AND($B$9=3,K56>0),('Gemeenten met categorie'!K30),0) -> 0 | H56: m² | I56: à | J56: € | K56: =IF(AND($B$9=3),('Gemeenten met categorie'!I30),"") ->  | L56: per m² | M56: = €
B57: Onderhoud tegels: | D57: >15m² | G57: =IF(AND($B$9=3,K57>0),('Gemeenten met categorie'!K31),0) -> 0 | H57: m² | I57: à | J57: € | K57: =IF(AND($B$9=3),('Gemeenten met categorie'!I31),"") ->  | L57: per m² | M57: = €
B58: Beheerskosten tegels: | D58: =<15m² | G58: =IF(AND($B$9>1,$B$9<4,K58>0),('Gemeenten met categorie'!K24),0) -> 0 | H58: m² | I58: à | J58: € | K58: =IF(AND($B$9>1,$B$9<4,$E$28<=15),('Gemeenten met categorie'!I24),"") ->  | L58: per m² | M58: = €
B59: Beheerskosten tegels: | D59: >15m² | G59: =IF(AND($B$9>1,$B$4,K59>0),('Gemeenten met categorie'!K25),0) -> 0 | H59: m² | I59: à | J59: € | K59: =IF(AND($B$9>1,$B$9<4,$E$28>15),('Gemeenten met categorie'!I25),"") ->  | L59: per m² | M59: = €
B60: Degeneratie tegels: | D60: per reparatie =<15m² | G60: =IF(AND($B$9>1,$B$9<4,K60>0),('Gemeenten met categorie'!K20),0) -> 0 | H60: eenh. | I60: à | J60: € | K60: =IF(AND($B$9>1,$B$9<4,$E$28<=15),('Gemeenten met categorie'!I20),"") ->  | L60: per eenh. | M60: = €
B61: Degeneratie tegels: | D61: >15m² | G61: =IF(AND($B$9>1,$B$9<4,K61>0),('Gemeenten met categorie'!K21),0) -> 0 | H61: m | I61: à | J61: € | K61: =IF(AND($B$9>1,$B$9<4,$E$28>15),('Gemeenten met categorie'!I21),"") ->  | L61: per m | M61: = €
A64: Tarief: C. | B64: All in klinkers: | D64: =<15m² | G64: =IF(AND($B$9=4,K64>0),('Gemeenten met categorie'!K34),0) -> 0 | H64: m² | I64: à | J64: € | K64: =IF(AND($B$9=4,$H$28>0,$H$28<=15),('Gemeenten met categorie'!I34),"") ->  | L64: per m² | M64: = € | N64: =IF(AND(G64>0,K64>0),(G64*K64),"") -> 
B65: All in klinkers: | D65: >15m² | G65: =IF(AND($B$9=4,K65>0),('Gemeenten met categorie'!K35),0) -> 0 | H65: m² | I65: à | J65: € | K65: =IF(AND($B$9=4,$H$28>15),('Gemeenten met categorie'!I35),"") ->  | L65: per m² | M65: = €
B66: All in tegels: | D66: =<15m² | G66: =IF(AND($B$9=4,K66>0),('Gemeenten met categorie'!K36),0) -> 0 | H66: m² | I66: à | J66: € | K66: =IF(AND($B$9=4,$E$28>0,$E$28<=15),('Gemeenten met categorie'!I36),"") ->  | L66: per m² | M66: = €
B67: All in tegels: | D67: >15m² | G67: =IF(AND($B$9=4,K67>0),('Gemeenten met categorie'!K37),0) -> 0 | H67: m² | I67: à | J67: € | K67: =IF(AND($B$9=4,$E$28>15),('Gemeenten met categorie'!I37),"") ->  | L67: per m² | M67: = €
A69: Tarief: D. | B69: All in trottoirband: | D69: per m1 | G69: =IF(AND($B$9>0,$B$9<5,K69>0),('Gemeenten met categorie'!K40),"") -> 0 | H69: m | I69: à | J69: € | K69: =IF(AND($B$9>=1,$I$28>=1),('Gemeenten met categorie'!I40),"") ->  | L69: per m | M69: = €
B70: All in opsluitband/koprol: | D70: per m1 | G70: =IF(AND($B$9>0,$B$9<5,K70>0),('Gemeenten met categorie'!K41),"") -> 0 | H70: m | I70: à | J70: € | K70: =IF(AND($B$9>=1,$K$28>=1),('Gemeenten met categorie'!I41),"") ->  | L70: per m | M70: = €
B71: All in berm/gazon: | D71: per reparatie =<50m² | G71: =IF(AND($B$9>0,$B$9<5,$E$33>0),('Gemeenten met categorie'!K42),0) -> 0 | H71: eenh. | I71: à | J71: € | K71: =IF(AND($B$9>=1,$E$33>=1),('Gemeenten met categorie'!I42),"") ->  | L71: per eenh. | M71: = €
B72: All in berm/gazon: | D72: >50m² | G72: =IF(AND($B$9>0,$B$9<5,E33>0),('Gemeenten met categorie'!K43),0) -> 0 | H72: m² | I72: à | J72: € | K72: =IF(AND($B$9>=1,$E$33>=1),('Gemeenten met categorie'!I43),"") ->  | L72: per m² | M72: = €
B73: All in bomen: | D73: stuks | G73: =G31 -> 0 | H73: sts | I73: à | J73: € | K73: =IF(AND($B$9>=1,$G$31>=1),('Gemeenten met categorie'!I44),"") ->  | L73: stuks | M73: = € | N73: =IF(AND(G73>1,K73>1),G73*K73,"") -> 
B74: All in struiken: | D74: stuks | G74: =G32 -> 0 | H74: sts | I74: à | J74: € | K74: =IF(AND($B$9>=1,$G$32>=1),('Gemeenten met categorie'!I45),"") ->  | L74: stuks | M74: = €
B75: All in asfalt: | D75: per m² | G75: =IF(AND($B$9>=1,$B$9<=4,K75>0),('Gemeenten met categorie'!K46),0) -> 0 | H75: m² | I75: à | J75: € | K75: =IF(AND($B$9>=1,$K$31>=1),('Gemeenten met categorie'!I46),"") ->  | L75: per m² | M75: = € | N75: =IF(AND(G75>1,K75>0.1),(G75*K75),"") -> 
B76: All in asfalt: | D76: per m² | G76: =IF(AND($B$9>=1,$B$9<=4,K76>0),('Gemeenten met categorie'!K47),0) -> 0 | H76: m² | I76: à | J76: € | K76: =IF(AND($B$9>=1,$K$32>=1),('Gemeenten met categorie'!I47),"") ->  | L76: per m² | M76: = € | N76: =IF(AND(G76>1,K76>0.1),(G76*K76),"") -> 
L77: Totaal: | N77: =SUM(N35:N76) -> 0
A79: Naam en paraaf budgethouder: | C79: =N3 -> ………………….. | E79: d.d. | I79: Afgewerk d.d.
A81: Factuuradres: | B81: ……………………………………………………………………………………………………….
N82: =IF(AND($B$9>1,$B$9<4,$E$28<=15),('Gemeenten met categorie'!L41),"") -> 

Sheet Gemeenten met categorie
B1: De Gemeenten van Nederland per 01-01-2016 | I1: Verrekenings-categorie: | K1: Verrekening: | N1: Tarief: | P1: categorie: | Q1: 1 | R1: 2 | S1: 3 | T1: 4 | U1: 5 | AA1: RICHTLIJN TARIEVEN 2004
B2: Gemeente: | C2: Indeling: | I2: =IF(AND(Rekenblad!$D$7=1,Rekenblad!$H$28>0.1,Rekenblad!$H$28<=15),(Q2),IF(AND(Rekenblad!$D$7=2,Rekenblad!$H$28>0.1,Rekenblad!$H$28<=15),(R2),(IF(AND(Rekenblad!$D$7=3,Rekenblad!$H$28>0.1,Rekenblad!$H$28<=15),(S2),IF(AND(Rekenblad!$D$7=4,Rekenblad!$H$28>0.1,Rekenblad!$H$28<=15),(T2),IF(AND(Rekenblad!$D$7=5,Rekenblad!$H$28>0.1,Rekenblad!$H$28<=15),(U2),0)))))) -> 0 | K2: =IF(AND(Rekenblad!$B$9=1,Rekenblad!$H$28>0,Rekenblad!$H$28<=15),(Rekenblad!$H$28),0) -> 0 | N2: A. | O2: Klinkers | P2: <15m2 | Q2: =SUM($K82,$K83,$K86) -> 32.8 | R2: =SUM($K82,$K89,$K92) -> 33.07 | S2: =SUM($K82,$K95,$K98) -> 33.9 | T2: =SUM($K82,$K101,$K104) -> 35.59 | U2: =SUM($K82,$K107,$K110) -> 36.15
A3: 1 | B3: Aa en Hunze | C3: 1 | D3: Postbus 93, 9460 AB GIETEN | I3: =IF(AND(Rekenblad!$D$7=1,Rekenblad!$H$28>15,Rekenblad!$H$28<=100),(Q3),IF(AND(Rekenblad!$D$7=2,Rekenblad!$H$28>15,Rekenblad!$H$28<=100),(R3),(IF(AND(Rekenblad!$D$7=3,Rekenblad!$H$28>15,Rekenblad!$H$28<=100),(S3),IF(AND(Rekenblad!$D$7=4,Rekenblad!$H$28>15,Rekenblad!$H$28<=100),(T3),IF(AND(Rekenblad!$D$7=5,Rekenblad!$H$28>15,Rekenblad!$H$28<=100),(U3),0)))))) -> 0 | K3: =IF(AND(Rekenblad!$B$9=1,Rekenblad!$H$28>15,Rekenblad!$H$28<=100),(Rekenblad!$H$28),0) -> 0 | O3: Klinkers | P3: >15m2 | Q3: =SUM($L82,$L83,$L86) -> 26.82 | R3: =SUM($L82,$L89,$L92) -> 27.04 | S3: =SUM($L82,$L95,$L98) -> 27.72 | T3: =SUM($L82,$L101,$L104) -> 29.1 | U3: =SUM($L82,$L107,$L110) -> 29.56 | AI3: KOSTENSPECIFICATIE | AK3: EURO ( € )
A4: 2 | B4: Aalburg | C4: 1 | D4: Postbus 40, 4260 AA WIJK EN AALBURG | I4: =IF(AND(Rekenblad!$D$7=1,Rekenblad!$H$28>100),(Q4),IF(AND(Rekenblad!$D$7=2,Rekenblad!$H$28>100),(R4),(IF(AND(Rekenblad!$D$7=3,Rekenblad!$H$28>100),(S4),IF(AND(Rekenblad!$D$7=4,Rekenblad!$H$28>100),(T4),IF(AND(Rekenblad!$D$7=5,Rekenblad!$H$28>100),(U4),0)))))) -> 0 | K4: =IF(AND(Rekenblad!$B$9=1,Rekenblad!$H$28>100),(Rekenblad!$H$28),0) -> 0 | O4: Klinkers | P4: >100m2 | Q4: =SUM($M82,$M83,$M86) -> 23.82 | R4: =SUM($M82,$M89,$M92) -> 24.02 | S4: =SUM($M82,$M95,$M98) -> 24.62 | T4: =SUM($M82,$M101,$M104) -> 25.85 | U4: =SUM($M82,$M107,$M110) -> 26.26
A5: 3 | B5: Aalsmeer | C5: 2 | D5: Postbus 253, 1430 AG AALSMEER | I5: =IF(AND(Rekenblad!$D$7=1,Rekenblad!$H$28>0.1,Rekenblad!$H$28<=15),(Q5),IF(AND(Rekenblad!$D$7=2,Rekenblad!$H$28>0.1,Rekenblad!$H$28<=15),(R5),(IF(AND(Rekenblad!$D$7=3,Rekenblad!$H$28>0.1,Rekenblad!$H$28<=15),(S5),IF(AND(Rekenblad!$D$7=4,Rekenblad!$H$28>0.1,Rekenblad!$H$28<=15),(T5),IF(AND(Rekenblad!$D$7=5,Rekenblad!$H$28>0.1,Rekenblad!$H$28<=15),(U5),0)))))) -> 0 | K5: =IF(AND(Rekenblad!$B$9=1,Rekenblad!$H$28>0,Rekenblad!$H$28<=15),(1),0) -> 0 | O5: Klinkers | P5: per reparatie | Q5: =$K84 -> 7.81 | R5: =$K90 -> 10.98 | S5: =$K96 -> 20.5 | T5: =$K102 -> 31.48 | U5: =$K108 -> 38.56 | AA5: 1) UITVOERINGSKOSTEN
A6: 4 | B6: Aalten | C6: 1 | D6: Postbus 119, 7120 AC AALTEN | I6: =IF(AND(Rekenblad!$D$7=1,Rekenblad!$H$28>0.1,Rekenblad!$H$28<=15),(Q6),IF(AND(Rekenblad!$D$7=2,Rekenblad!$H$28>0.1,Rekenblad!$H$28<=15),(R6),(IF(AND(Rekenblad!$D$7=3,Rekenblad!$H$28>0.1,Rekenblad!$H$28<=15),(S6),IF(AND(Rekenblad!$D$7=4,Rekenblad!$H$28>0.1,Rekenblad!$H$28<=15),(T6),IF(AND(Rekenblad!$D$7=5,Rekenblad!$H$28>0.1,Rekenblad!$H$28<=15),(U6),0)))))) -> 0 | K6: =IF(AND(Rekenblad!$B$9=1,Rekenblad!$H$28>0,Rekenblad!$H$28<15),(Rekenblad!$F$28),0) -> 0 | O6: Degeneratie per m1 | P6: <15m2
A7: 5 | B7: Achterkarspelen | C7: 1 | D7: Postbus 2, 9285 ZV BUITENPOST | I7: =IF(AND(Rekenblad!$D$7=1,Rekenblad!$H$28>15,Rekenblad!$H$28<=100),(Q7),IF(AND(Rekenblad!$D$7=2,Rekenblad!$H$28>15,Rekenblad!$H$28<=100),(R7),(IF(AND(Rekenblad!$D$7=3,Rekenblad!$H$28>15,Rekenblad!$H$28<=100),(S7),IF(AND(Rekenblad!$D$7=4,Rekenblad!$H$28>15,Rekenblad!$H$28<=100),(T7),IF(AND(Rekenblad!$D$7=5,Rekenblad!$H$28>15,Rekenblad!$H$28<=100),(U7),0)))))) -> 0 | K7: =IF(AND(Rekenblad!$B$9=1,Rekenblad!$H$28>15,Rekenblad!$H$28<=100),(Rekenblad!$F$28),0) -> 0 | O7: Degeneratie per m1 | P7: >15m2 | Q7: =$L85 -> 2.59 | R7: =$L91 -> 3.64 | S7: =$L97 -> 6.79 | T7: =$L103 -> 13.52 | U7: =$L109 -> 15.77 | AA7: a) Ploegkosten per 01-07-2003 | AF7: Per uur
A8: 6 | B8: Alblasserdam | C8: 5 | D8: Postbus 2, 2950 AA ALBLASSERDAM | I8: =IF(AND(Rekenblad!$D$7=1,Rekenblad!$H$28>100),(Q8),IF(AND(Rekenblad!$D$7=2,Rekenblad!$H$28>100),(R8),(IF(AND(Rekenblad!$D$7=3,Rekenblad!$H$28>100),(S8),IF(AND(Rekenblad!$D$7=4,Rekenblad!$H$28>100),(T8),IF(AND(Rekenblad!$D$7=5,Rekenblad!$H$28>100),(U8),0)))))) -> 0 | K8: =IF(AND(Rekenblad!$B$9=1,Rekenblad!$H$28>=100),(Rekenblad!$F$28),0) -> 0 | O8: Degeneratie per m1 | P8: >100m2 | Q8: =$M85 -> 2.3 | R8: =$M91 -> 3.24 | S8: =$M97 -> 6.03 | T8: =$M103 -> 12.01 | U8: =$M109 -> 14.01
A9: 7 | B9: Albrandswaard | C9: 2 | D9: Postbus 1000, 3160 GA RHOON | I9: =IF(AND(Rekenblad!$D$7=1,Rekenblad!$E$28>0.1,Rekenblad!$E$28<=15),(Q9),IF(AND(Rekenblad!$D$7=2,Rekenblad!$E$28>0.1,Rekenblad!$E$28<=15),(R9),(IF(AND(Rekenblad!$D$7=3,Rekenblad!$E$28>0.1,Rekenblad!$E$28<=15),(S9),IF(AND(Rekenblad!$D$7=4,Rekenblad!$E$28>0.1,Rekenblad!$E$28<=15),(T9),IF(AND(Rekenblad!$D$7=5,Rekenblad!$E$28>0.1,Rekenblad!$E$28<=15),(U9),0)))))) -> 0 | K9: =IF(AND(Rekenblad!$B$9=1,Rekenblad!$E$28>0,Rekenblad!$E$28<=15),(Rekenblad!$E$28),0) -> 0 | O9: Tegels | P9: <15m2 | Q9: =SUM($N82,$N83,$N86) -> 25.46 | R9: =SUM($N82,$N89,$N92) -> 25.63 | S9: =SUM($N82,$N95,$N98) -> 26.16 | T9: =SUM($N82,$N101,$N104) -> 27.37 | U9: =SUM($N82,$N107,$N110) -> 27.77 | AA9: Straatmaker I | AB9: groep D, Elsevier GWW Kosten 1 juli 2003 | AF9: =Invoerscherm!E6 -> 35.42 | AG9: (met 5% ziekteverzuim)
A10: 8 | B10: Alkmaar | C10: 1 | D10: Postbus 53, 1800 BC ALKMAAR | I10: =IF(AND(Rekenblad!$D$7=1,Rekenblad!$E$28>15,Rekenblad!$E$28<=100),(Q10),IF(AND(Rekenblad!$D$7=2,Rekenblad!$E$28>15,Rekenblad!$E$28<=100),(R10),(IF(AND(Rekenblad!$D$7=3,Rekenblad!$E$28>15,Rekenblad!$E$28<=100),(S10),IF(AND(Rekenblad!$D$7=4,Rekenblad!$E$28>15,Rekenblad!$E$28<=100),(T10),IF(AND(Rekenblad!$D$7=5,Rekenblad!$E$28>15,Rekenblad!$E$28<=100),(U10),0)))))) -> 0 | K10: =IF(AND(Rekenblad!$B$9=1,Rekenblad!$E$28>15,Rekenblad!$E$28<=100),(Rekenblad!$E$28),0) -> 0 | O10: Tegels | P10: >15m2 | Q10: =SUM($O82,$O83,$O86) -> 19.61 | R10: =SUM($O82,$O89,$O92) -> 19.74 | S10: =SUM($O82,$O95,$O98) -> 20.15 | T10: =SUM($O82,$O101,$O104) -> 21.08 | U10: =SUM($O82,$O107,$O110) -> 21.39 | AA10: Straatmaker II | AB10: groep B, Idem | AF10: =Invoerscherm!E7 -> 33.68 | AG10: (met 5% ziekteverzuim)
A11: 9 | B11: Almelo | C11: 1 | D11: Postbus 5100, 7600 GC ALMELO | I11: =IF(AND(Rekenblad!$D$7=1,Rekenblad!$E$28>100),(Q11),IF(AND(Rekenblad!$D$7=2,Rekenblad!$E$28>100),(R11),(IF(AND(Rekenblad!$D$7=3,Rekenblad!$E$28>100),(S11),IF(AND(Rekenblad!$D$7=4,Rekenblad!$E$28>100),(T11),IF(AND(Rekenblad!$D$7=5,Rekenblad!$E$28>100),(U11),0)))))) -> 0 | K11: =IF(AND(Rekenblad!$B$9=1,Rekenblad!$E$28>100),(Rekenblad!$E$28),0) -> 0 | O11: Tegels | P11: >100m2 | Q11: =SUM($P82,$P83,$P86) -> 18.42 | R11: =SUM($P82,$P89,$P92) -> 18.55 | S11: =SUM($P82,$P95,$P98) -> 18.93 | T11: =SUM($P82,$P101,$P104) -> 19.81 | U11: =SUM($P82,$P107,$P110) -> 20.1 | AA11: Transport | AB11: EVO-berekening DD. 03-01-2002 + index | AF11: =Invoerscherm!E8 -> 9.29 | AG11: incl.kraan | AH11: + | AI11: 0.025 | AJ11: ivm ontbreken EVO gegevens
A12: 10 | B12: Almere | C12: 3 | D12: Postbus 200, 1300 AE ALMERE | I12: =IF(AND(Rekenblad!$D$7=1,Rekenblad!$E$28>0.1,Rekenblad!$E$28<=15),(Q12),IF(AND(Rekenblad!$D$7=2,Rekenblad!$E$28>0.1,Rekenblad!$E$28<=15),(R12),(IF(AND(Rekenblad!$D$7=3,Rekenblad!$E$28>0.1,Rekenblad!$E$28<=15),(S12),IF(AND(Rekenblad!$D$7=4,Rekenblad!$E$28>0.1,Rekenblad!$E$28<=15),(T12),IF(AND(Rekenblad!$D$7=5,Rekenblad!$E$28>0.1,Rekenblad!$E$28<=15),(U12),0)))))) -> 0 | K12: =IF(AND(Rekenblad!$B$9=1,Rekenblad!$E$28>0,Rekenblad!$E$28<=15),(1),0) -> 0 | O12: Tegels | P12: per reparatie | Q12: =N84 -> 0 | R12: =$N90 -> 0.77 | S12: =$N96 -> 3.09 | T12: =$N102 -> 8.89 | U12: =$N108 -> 10.83 | AF12: --------------------+
A13: 11 | B13: Alphen aan de Rijn | C13: 5 | D13: Postbus 13, 2400 AA ALPHEN AAN DE RIJN | I13: =IF(AND(Rekenblad!$D$7=1,Rekenblad!$H$28>0.1,Rekenblad!$H$28<=15),(Q13),IF(AND(Rekenblad!$D$7=2,Rekenblad!$H$28>0.1,Rekenblad!$H$28<=15),(R13),(IF(AND(Rekenblad!$D$7=3,Rekenblad!$H$28>0.1,Rekenblad!$H$28<=15),(S13),IF(AND(Rekenblad!$D$7=4,Rekenblad!$H$28>0.1,Rekenblad!$H$28<=15),(T13),IF(AND(Rekenblad!$D$7=5,Rekenblad!$H$28>0.1,Rekenblad!$H$28<=15),(U13),0)))))) -> 0 | K13: =IF(AND(Rekenblad!$B$9=1,Rekenblad!$E$28>0,Rekenblad!$E$28<=15),(Rekenblad!$C$28),0) -> 0 | O13: Degeneratie per m1 | P13: <15m2 | Q13: =0*$G$18 -> 0 | R13: =0*$G18 -> 0 | S13: =0*$G18 -> 0 | T13: =0*$G18 -> 0 | U13: =0*$G18 -> 0 | AF13: =SUM(AF9:AF11) -> 78.39
A14: 12 | B14: Alphen-Chaam | C14: 1 | D14: Postbus 3, 5130 AA ALPHEN | I14: =IF(AND(Rekenblad!$D$7=1,Rekenblad!$E$28>15,Rekenblad!$E$28<=100),(Q14),IF(AND(Rekenblad!$D$7=2,Rekenblad!$E$28>15,Rekenblad!$E$28<=100),(R14),(IF(AND(Rekenblad!$D$7=3,Rekenblad!$E$28>15,Rekenblad!$E$28<=100),(S14),IF(AND(Rekenblad!$D$7=4,Rekenblad!$E$28>15,Rekenblad!$E$28<=100),(T14),IF(AND(Rekenblad!$D$7=5,Rekenblad!$E$28>15,Rekenblad!$E$28<=100),(U14),0)))))) -> 0 | K14: =IF(AND(Rekenblad!$B$9=1,Rekenblad!$E$28>15,Rekenblad!$E$28<=100),(Rekenblad!$C$28),0) -> 0 | O14: Degeneratie per m1 | P14: >15m2 | Q14: =O85 -> 0 | R14: =$O91 -> 0.15 | S14: =$O97 -> 0.6 | T14: =$O103 -> 7.29 | U14: =$O109 -> 9.53 | AA14: Alg. kosten winst/risico aannemer | AE14: =12/100 -> 0.12 | AF14: =ROUND(AE14*AF13,2) -> 9.41
A15: 13 | B15: Ameland | C15: 1 | D15: Postbus 22, 9160 AA HOLLUM | I15: =IF(AND(Rekenblad!$D$7=1,Rekenblad!$E$28>100),(Q15),IF(AND(Rekenblad!$D$7=2,Rekenblad!$E$28>100),(R15),(IF(AND(Rekenblad!$D$7=3,Rekenblad!$E$28>100),(S15),IF(AND(Rekenblad!$D$7=4,Rekenblad!$E$28>100),(T15),IF(AND(Rekenblad!$D$7=5,Rekenblad!$E$28>100),(U15),0)))))) -> 0 | K15: =IF(AND(Rekenblad!$B$9=1,Rekenblad!$E$28>100),(Rekenblad!$C$28),0) -> 0 | O15: Degeneratie per m1 | P15: >100m2 | Q15: =0*$G$18 -> 0 | R15: =$P91 -> 0.14 | S15: =$P97 -> 0.56 | T15: =$P103 -> 6.86 | U15: =$P109 -> 8.95 | AF15: ---------------------+
A16: 14 | B16: Amersfoort | C16: 1 | D16: Postbus 4000, 3800 EA AMERSFOORT | AD16: TOTAAL per ploeguur | AF16: =SUM(AF13:AF14) -> 87.8 | AG16: TOTAAL per manuur | AI16: =ROUND(AF16/2,2) -> 43.9
A17: 15 | B17: Amstelveen | C17: 5 | D17: Postbus 4, 1180 BA AMSTELVEEN | N17: B1.
A18: 16 | B18: Amsterdam | C18: 3 | D18: Postbus 202, 1000 AE AMSTERDAM | I18: =IF(AND(Rekenblad!$D$7=1,Rekenblad!$H$28>0.1,Rekenblad!$H$28<=15),(Q18),IF(AND(Rekenblad!$D$7=2,Rekenblad!$H$28>0.1,Rekenblad!$H$28<=15),(R18),(IF(AND(Rekenblad!$D$7=3,Rekenblad!$H$28>0.1,Rekenblad!$H$28<=15),(S18),IF(AND(Rekenblad!$D$7=4,Rekenblad!$H$28>0.1,Rekenblad!$H$28<=15),(T18),IF(AND(Rekenblad!$D$7=5,Rekenblad!$H$28>0.1,Rekenblad!$H$28<=15),(U18),0)))))) -> 0 | K18: =IF(AND(Rekenblad!$B$9>=2,Rekenblad!$B$9<=3,Rekenblad!$H$28>0,Rekenblad!$H$28<=15),(1),0) -> 0 | O18: Deg. klink. per m1 | P18: per reparatie | Q18: =$P115 -> 7.81 | R18: =$P121 -> 10.98 | S18: =$P127 -> 20.5 | T18: =$P133 -> 31.48 | U18: =$P138 -> 38.56
A19: 17 | B19: Apeldoorn | C19: 1 | D19: Postbus 9033, 7300 ES APELDOORN | I19: =IF(AND(Rekenblad!$D$7=1,Rekenblad!$H$28>15),(Q19),IF(AND(Rekenblad!$D$7=2,Rekenblad!$H$28>15),(R19),(IF(AND(Rekenblad!$D$7=3,Rekenblad!$H$28>15),(S19),IF(AND(Rekenblad!$D$7=4,Rekenblad!$H$28>15),(T19),IF(AND(Rekenblad!$D$7=5,Rekenblad!$H$28>15),(U19),0)))))) -> 0 | K19: =IF(AND(Rekenblad!$B$9>=2,Rekenblad!$B$9<=3,Rekenblad!$H$28>15),(Rekenblad!$F$28),0) -> 0 | O19: Deg. klink. per m1 | P19: >15m2 | Q19: =$P117 -> 2.59 | R19: =$P123 -> 3.64 | S19: =$P129 -> 6.79 | T19: =$P135 -> 13.52 | U19: =$P140 -> 15.77 | AA19: b) kosten materiaal | AD19: kosten | AE19: breuk | AF19: reparatie | AG19: KLINKERS | AJ19: TEGELS
A20: 18 | B20: Appingedam | C20: 5 | D20: Postbus 15, 9900 AA APPINGEDAM | I20: =IF(AND(Rekenblad!$D$7=1,Rekenblad!$E$28>0.1,Rekenblad!$E$28<=15),(Q20),IF(AND(Rekenblad!$D$7=2,Rekenblad!$E$28>0.1,Rekenblad!$E$28<=15),(R20),(IF(AND(Rekenblad!$D$7=3,Rekenblad!$E$28>0.1,Rekenblad!$E$28<=15),(S20),IF(AND(Rekenblad!$D$7=4,Rekenblad!$E$28>0.1,Rekenblad!$E$28<=15),(T20),IF(AND(Rekenblad!$D$7=5,Rekenblad!$E$28>0.1,Rekenblad!$E$28<=15),(U20),0)))))) -> 0 | K20: =IF(AND(Rekenblad!$B$9>=2,Rekenblad!$B$9<=3,Rekenblad!$E$28>0,Rekenblad!$E$28<=15),(1),0) -> 0 | O20: Deg. tegels per m1 | P20: per reparatie | Q20: =$P116 -> 0 | R20: =$P122 -> 0.77 | S20: =$P128 -> 3.09 | T20: =$P134 -> 8.89 | U20: =$P139 -> 10.83 | AA20: Incl. Magazijntoeslag | AB20: =15/100 -> 0.15 | AD20: per m2 | AE20: in % | AF20: per m2 | AG20: materiaalverhouding per 1000 | AJ20: materiaalverhouding per m2
A21: 19 | B21: Arnhem | C21: 1 | D21: Postbus 9029, 6800 EL ARNHEM | I21: =IF(AND(Rekenblad!$D$7=1,Rekenblad!$E$28>15),(Q21),IF(AND(Rekenblad!$D$7=2,Rekenblad!$E$28>15),(R21),(IF(AND(Rekenblad!$D$7=3,Rekenblad!$E$28>15),(S21),IF(AND(Rekenblad!$D$7=4,Rekenblad!$E$28>15),(T21),IF(AND(Rekenblad!$D$7=5,Rekenblad!$E$28>15),(U21),0)))))) -> 0 | K21: =IF(AND(Rekenblad!$B$9>=2,Rekenblad!$B$9<=3,Rekenblad!$E$28>15),(Rekenblad!$C$28),0) -> 0 | O21: Deg. tegels per m1 | P21: >15m2 | Q21: =$P118 -> 0 | R21: =$P124 -> 0.15 | S21: =$P130 -> 0.6 | T21: =$P136 -> 7.29 | U21: =$P141 -> 9.53
A22: 20 | B22: Assen | C22: 1 | D22: Postbus 30018, 9400 RA ASSEN | I22: =IF(AND(Rekenblad!$D$7=1,Rekenblad!$H$28>0.1,Rekenblad!$H$28<=15),(Q22),IF(AND(Rekenblad!$D$7=2,Rekenblad!$H$28>0.1,Rekenblad!$H$28<=15),(R22),(IF(AND(Rekenblad!$D$7=3,Rekenblad!$H$28>0.1,Rekenblad!$H$28<=15),(S22),IF(AND(Rekenblad!$D$7=4,Rekenblad!$H$28>0.1,Rekenblad!$H$28<=15),(T22),IF(AND(Rekenblad!$D$7=5,Rekenblad!$H$28>0.1,Rekenblad!$H$28<=15),(U22),0)))))) -> 0 | K22: =IF(AND(Rekenblad!$B$9>=2,Rekenblad!$B9<=3,Rekenblad!$H$28>0,Rekenblad!$H$28<=15),(Rekenblad!$H$28),0) -> 0 | O22: Beh.kost. klink m2 | P22: <15m2 | Q22: =$L115 -> 1.74 | R22: =$L121 -> 1.74 | S22: =$L127 -> 1.74 | T22: =$L133 -> 1.74 | U22: =$L138 -> 1.74 | AA22: K-Klinkers | AB22: per m2 | AD22: =((AG22*AI22/1000*100)+(AG23*AI23/1000*50)+(AG24*AI24/1000*44))*1.15 -> 21.79204 | AE22: 0.05 | AF22: =ROUND(AE22*AD22,2) -> 1.09 | AG22: 0.2 | AH22: waal | AI22: =Invoerscherm!E13 -> 357 | AJ22: 0.95 | AK22: Dik 45 mm | AL22: =Invoerscherm!E20 -> 8.03
A23: 21 | B23: Asten | C23: 1 | D23: Postbus 290, 5720 AG ASTEN | I23: =IF(AND(Rekenblad!$D$7=1,Rekenblad!$H$28>15),(Q23),IF(AND(Rekenblad!$D$7=2,Rekenblad!$H$28>15),(R23),(IF(AND(Rekenblad!$D$7=3,Rekenblad!$H$28>15),(S23),IF(AND(Rekenblad!$D$7=4,Rekenblad!$H$28>15),(T23),IF(AND(Rekenblad!$D$7=5,Rekenblad!$H$28>15),(U23),0)))))) -> 0 | K23: =IF(AND(Rekenblad!$B$9>=2,Rekenblad!$B$9<=3,Rekenblad!$H$28>15),(Rekenblad!$H$28),0) -> 0 | O23: Beh.kost. klink m2 | P23: >15m2 | Q23: =$L117 -> 1.42 | R23: =$L123 -> 1.42 | S23: =$L129 -> 1.42 | T23: =$L135 -> 1.42 | U23: =$L140 -> 1.42 | AA23: T-Tegels | AB23: per m2 | AD23: =((AJ22*AL22)+(AJ23*AL23))*1.15 -> 9.4369 | AE23: 0.05 | AF23: =ROUND(AE23*AD23,2) -> 0.47 | AG23: 0.2 | AH23: kei | AI23: =Invoerscherm!E14 -> 550 | AJ23: 0.05 | AK23: Dik 80 mm | AL23: =Invoerscherm!E21 -> 11.55
A24: 22 | B24: Baarle-Nassau | C24: 1 | D24: Postbus 105, 5110 AC BAARLE-NASSAU | I24: =IF(AND(Rekenblad!$D$7=1,Rekenblad!$E$28>0.1,Rekenblad!$E$28<=15),(Q24),IF(AND(Rekenblad!$D$7=2,Rekenblad!$E$28>0.1,Rekenblad!$E$28<=15),(R24),(IF(AND(Rekenblad!$D$7=3,Rekenblad!$E$28>0.1,Rekenblad!$E$28<=15),(S24),IF(AND(Rekenblad!$D$7=4,Rekenblad!$E$28>0.1,Rekenblad!$E$28<=15),(T24),IF(AND(Rekenblad!$D$7=5,Rekenblad!$E$28>0.1,Rekenblad!$E$28<=15),(U24),0)))))) -> 0 | K24: =IF(AND(Rekenblad!$E$28>0,Rekenblad!$E$28<=15),(Rekenblad!$E$28),0) -> 0 | O24: Beh.kost.tegels m2 | P24: <15m2 | Q24: =$L116 -> 1.37 | R24: =$L122 -> 1.37 | S24: =$L128 -> 1.37 | T24: =$L134 -> 1.37 | U24: =$L139 -> 1.37 | AA24: Z-Zand | AB24: per m3 | AD24: =AL24*(1+AB20) -> 12.3625 | AE24: 0.05 | AF24: =ROUND(AE24*AD24,2) -> 0.62 | AG24: 0.6 | AH24: beton | AI24: =Invoerscherm!E17 -> 239 | AK24: Zand p/ m3 | AL24: =Invoerscherm!E24 -> 10.75
A25: 23 | B25: Baarn | C25: 1 | D25: Postbus 1003, 3740 BA BAARN | I25: =IF(AND(Rekenblad!$D$7=1,Rekenblad!$E$28>15),(Q25),IF(AND(Rekenblad!$D$7=2,Rekenblad!$E$28>15),(R25),(IF(AND(Rekenblad!$D$7=3,Rekenblad!$E$28>15),(S25),IF(AND(Rekenblad!$D$7=4,Rekenblad!$E$28>15),(T25),IF(AND(Rekenblad!$D$7=5,Rekenblad!$E$28>15),(U25),0)))))) -> 0 | K25: =IF(AND(Rekenblad!$B$9>=2,Rekenblad!$B$9<=3,Rekenblad!$E$28>15),(Rekenblad!$E$28),0) -> 0 | O25: Beh.kost.tegels m2 | P25: >15m2 | Q25: =$L118 -> 1.06 | R25: =$L124 -> 1.06 | S25: =$L130 -> 1.06 | T25: =$L136 -> 1.06 | U25: =$L141 -> 1.06
A26: 24 | B26: Barendrecht | C26: 5 | D26: Postbus 501, 2990 EA BARENDRECHT | AA26: c) kosten totaal
A27: 25 | B27: Barneveld | C27: 1 | D27: Postbus 63, 3770 AB BARNEVELD | N27: B2. | AA27: kosten herstraten | AD27: Reparatie- | AE27: Kosten | AF27: Uitvoerings-
A28: 26 | B28: Bedum | C28: 5 | D28: Postbus 38, 9780 AA BEDUM | I28: =IF(AND(Rekenblad!$D$7=1,Rekenblad!$H$28>0.1,Rekenblad!$H$28<=15),(Q28),IF(AND(Rekenblad!$D$7=2,Rekenblad!$H$28>0.1,Rekenblad!$H$28<=15),(R28),(IF(AND(Rekenblad!$D$7=3,Rekenblad!$H$28>0.1,Rekenblad!$H$28<=15),(S28),IF(AND(Rekenblad!$D$7=4,Rekenblad!$H$28>0.1,Rekenblad!$H$28<=15),(T28),IF(AND(Rekenblad!$D$7=5,Rekenblad!$H$28>0.1,Rekenblad!$H$28<=15),(U28),0)))))) -> 0 | K28: =IF(AND(Rekenblad!$B$9=3,Rekenblad!$H$28>0,Rekenblad!$H$28<=15),(Rekenblad!$H$28),0) -> 0 | O28: Onderhoud klinkers | P28: <15m2 | Q28: =$K83 -> 2.14 | R28: =$K89 -> 2.41 | S28: =$K95 -> 3.24 | T28: =$K101 -> 4.93 | U28: =$K107 -> 5.49 | AA28: 1e herstel | AD28: norm p/m2 | AE28: manuur: | AF28: kosten/m2 | AH28: Gemiddelde toeslag
A29: 27 | B29: Beek | C29: 1 | D29: Postbus 20, 6190 AA BEEK | I29: =IF(AND(Rekenblad!$D$7=1,Rekenblad!$H$28>15),(Q29),IF(AND(Rekenblad!$D$7=2,Rekenblad!$H$28>15),(R29),(IF(AND(Rekenblad!$D$7=3,Rekenblad!$H$28>15),(S29),IF(AND(Rekenblad!$D$7=4,Rekenblad!$H$28>15),(T29),IF(AND(Rekenblad!$D$7=5,Rekenblad!$H$28>15),(U29),0)))))) -> 0 | K29: =IF(AND(Rekenblad!$B$9=3,Rekenblad!$H$28>15),(Rekenblad!$H$28),0) -> 0 | O29: Onderhoud klinkers | P29: >15m2 | Q29: =$L83 -> 1.75 | R29: =$L89 -> 1.97 | S29: =$L95 -> 2.65 | T29: =$L101 -> 4.03 | U29: =$L107 -> 4.49 | AA29: (A+B) | AD29: p/manuur | AE29: =$I$16 -> 0 | AF29: incl. | AH29: i.v.m. verrekening
A30: 28 | B30: Beemster | C30: 4 | D30: Postbus 7, 1462 ZG MIDDENBEEMSTER | I30: =IF(AND(Rekenblad!$D$7=1,Rekenblad!$E$28>0.1,Rekenblad!$E$28<=15),(Q30),IF(AND(Rekenblad!$D$7=2,Rekenblad!$E$28>0.1,Rekenblad!$E$28<=15),(R30),(IF(AND(Rekenblad!$D$7=3,Rekenblad!$E$28>0.1,Rekenblad!$E$28<=15),(S30),IF(AND(Rekenblad!$D$7=4,Rekenblad!$E$28>0.1,Rekenblad!$E$28<=15),(T30),IF(AND(Rekenblad!$D$7=5,Rekenblad!$E$28>0.1,Rekenblad!$E$28<=15),(U30),0)))))) -> 0 | K30: =IF(AND(Rekenblad!$B$9=3,Rekenblad!$E$28>0,Rekenblad!$E$28<=15),(Rekenblad!$E$28),0) -> 0 | O30: Onderhoud tegels | P30: <15m2 | Q30: =$N83 -> 1.18 | R30: =$N89 -> 1.35 | S30: =$N95 -> 1.88 | T30: =$N101 -> 3.09 | U30: =$N107 -> 3.49 | AE30: per m2: | AF30: materiaal | AG30: incl. | AH30: GATVERGROTING (m.u.v.tarief D)
A31: 29 | B31: Beesel | C31: 1 | D31: Postbus 4750, 5953 ZK REUVER | I31: =IF(AND(Rekenblad!$D$7=1,Rekenblad!$E$28>15),(Q31),IF(AND(Rekenblad!$D$7=2,Rekenblad!$E$28>15),(R31),(IF(AND(Rekenblad!$D$7=3,Rekenblad!$E$28>15),(S31),IF(AND(Rekenblad!$D$7=4,Rekenblad!$E$28>15),(T31),IF(AND(Rekenblad!$D$7=5,Rekenblad!$E$28>15),(U31),0)))))) -> 0 | K31: =IF(AND(Rekenblad!$B$9=3,Rekenblad!$E$28>15),(Rekenblad!$E$28),0) -> 0 | O31: Onderhoud tegels | P31: >15m2 | Q31: =$O83 -> 0.91 | R31: =$O89 -> 1.04 | S31: =$O95 -> 1.45 | T31: =$O101 -> 2.38 | U31: =$O107 -> 2.69
A32: 30 | B32: Bellingwedde | C32: 1 | D32: Postbus 18, 9698 ZG WEDDE | AA32: KLINKERS | AB32: <15 m2 (lasgat) | AD32: 0.51 | AE32: =ROUND(AD32*$AI$16,2) -> 22.39 | AF32: =ROUND((AE32+AF22+AF24)*(1+AH32),2) -> 28.92 | AH32: 0.2 | AI32: Prijzen materialen uit
A33: 31 | B33: Berg en Dal | C33: 1 | D33: Postbus 20, 6560 AA GROESBEEK | N33: C. | AA33: KLINKERS | AB33: >15 m2 (geul) | AD33: 0.41 | AE33: =ROUND(AD33*$AI$16,2) -> 18 | AF33: =ROUND((AE33+AF22+AF24)*(1+AH33),2) -> 23.65 | AH33: 0.2 | AI33: Elsevier GWW Kosten funderingslagen &
A34: 32 | B34: Bergeijk | C34: 1 | D34: Postbus 10000, 5570 GA BERGEIJK | I34: =IF(AND(Rekenblad!$D$7=1,Rekenblad!$H$28>0.1,Rekenblad!$H$28<=15),(Q34),IF(AND(Rekenblad!$D$7=2,Rekenblad!$H$28>0.1,Rekenblad!$H$28<=15),(R34),(IF(AND(Rekenblad!$D$7=3,Rekenblad!$H$28>0.1,Rekenblad!$H$28<=15),(S34),IF(AND(Rekenblad!$D$7=4,Rekenblad!$H$28>0.1,Rekenblad!$H$28<=15),(T34),IF(AND(Rekenblad!$D$7=5,Rekenblad!$H$28>0.1,Rekenblad!$H$28<=15),(U34),0)))))) -> 0 | K34: =IF(AND(Rekenblad!$B$9=4,Rekenblad!$H$28>0,Rekenblad!$H$28<=15),(Rekenblad!$H$28),0) -> 0 | O34: Klinkers | P34: <15m2 | Q34: =$L176 -> 15.93 | R34: =$L182 -> 16.2 | S34: =$L188 -> 17.03 | T34: =$L194 -> 18.72 | U34: =$L200 -> 19.28 | AA34: KLINKERS | AB34: >100 m2 (geul) | AD34: 0.36 | AE34: 15.8 | AF34: =ROUND((AE34+AF22+AF24)*(1+AH34),2) -> 21.01 | AH34: 0.2 | AI34: elementenverhardingen 01-05-2001
A35: 33 | B35: Bergen (L.) | C35: 1 | D35: Postbus 140, 5854 ZJ BERGEN (L.) | I35: =IF(AND(Rekenblad!$D$7=1,Rekenblad!$H$28>15),(Q35),IF(AND(Rekenblad!$D$7=2,Rekenblad!$H$28>15),(R35),(IF(AND(Rekenblad!$D$7=3,Rekenblad!$H$28>15),(S35),IF(AND(Rekenblad!$D$7=4,Rekenblad!$H$28>15),(T35),IF(AND(Rekenblad!$D$7=5,Rekenblad!$H$28>15),(U35),0)))))) -> 0 | K35: =IF(AND(Rekenblad!$B$9=4,Rekenblad!$H$28>15),(Rekenblad!$H$28),0) -> 0 | O35: Klinkers | P35: >15m2 | Q35: =$L178 -> 13.02416667 | R35: =$L184 -> 13.24416667 | S35: =$L190 -> 13.92416667 | T35: =$L196 -> 15.30416667 | U35: =$L202 -> 15.76416667 | AA35: TEGELS | AB35: <15 m2 (lasgat) | AD35: 0.41 | AE35: 18 | AF35: =ROUND((AE35+AF23+AF24)*(1+AH35),2) -> 22.91 | AH35: 0.2
A36: 34 | B36: Bergen (NH.) | C36: 1 | D36: Postbus 175, 1860 AD BERGEN (NH.) | I36: =IF(AND(Rekenblad!$D$7=1,Rekenblad!$E$28>0.1,Rekenblad!$E$28<=15),(Q36),IF(AND(Rekenblad!$D$7=2,Rekenblad!$E$28>0.1,Rekenblad!$E$28<=15),(R36),(IF(AND(Rekenblad!$D$7=3,Rekenblad!$E$28>0.1,Rekenblad!$E$28<=15),(S36),IF(AND(Rekenblad!$D$7=4,Rekenblad!$E$28>0.1,Rekenblad!$E$28<=15),(T36),IF(AND(Rekenblad!$D$7=5,Rekenblad!$E$28>0.1,Rekenblad!$E$28<=15),(U36),0)))))) -> 0 | K36: =IF(AND(Rekenblad!$B$9=4,Rekenblad!$E$28>0,Rekenblad!$E$28<=15),(Rekenblad!$E$28),0) -> 0 | O36: Tegels | P36: <15m2 | Q36: =$L177 -> 12.09583333 | R36: =$L183 -> 12.26583333 | S36: =$L189 -> 12.79583333 | T36: =$L195 -> 14.00583333 | U36: =$L201 -> 14.40583333 | AA36: TEGELS | AB36: >15 m2 (geul) | AD36: 0.31 | AE36: 13.61 | AF36: =ROUND((AE36+AF23+AF24)*(1+AH36),2) -> 17.64 | AH36: 0.2
A37: 35 | B37: Bergen op Zoom | C37: 1 | D37: Postbus 35, 4600 AA BERGEN OP ZOOM | I37: =IF(AND(Rekenblad!$D$7=1,Rekenblad!$E$28>15),(Q37),IF(AND(Rekenblad!$D$7=2,Rekenblad!$E$28>15),(R37),(IF(AND(Rekenblad!$D$7=3,Rekenblad!$E$28>15),(S37),IF(AND(Rekenblad!$D$7=4,Rekenblad!$E$28>15),(T37),IF(AND(Rekenblad!$D$7=5,Rekenblad!$E$28>15),(U37),0)))))) -> 0 | K37: =IF(AND(Rekenblad!$B$9=4,Rekenblad!$E$28>15),(Rekenblad!$E$28),0) -> 0 | O37: Tegels | P37: >15m2 | Q37: =$L179 -> 9.32 | R37: =$L185 -> 9.45 | S37: =$L191 -> 9.86 | T37: =$L197 -> 10.79 | U37: =$L202 -> 15.76416667 | AA37: TEGELS | AB37: >100 m2 (geul) | AD37: 0.29 | AE37: 12.73 | AF37: =ROUND((AE37+AF23+AF24)*(1+AH37),2) -> 16.58 | AH37: 0.2
A38: 36 | B38: Berkelland | C38: 1 | D38: Postbus 200, 7270 HA BORCULO | AA38: TROTTOIRBAND | AB38: (tegelmat.) | AD38: 0.22 | AE38: 9.66 | AF38: =(AE38+AF23+AF24) -> 10.75
A39: 37 | B39: Bernheze | C39: 1 | D39: Postbus 19, 5384 ZG HEESH | AA39: OPSLUITBAND | AB39: (tegelmat.) | AD39: 0.17 | AE39: 7.46 | AF39: =AE39+AF23+AF24 -> 8.55
A40: 38 | B40: Best | C40: 1 | D40: Postbus 50, 5680 AB BEST | I40: =IF(OR(Rekenblad!$D$7=1),(Q40),IF(OR(Rekenblad!$D$7=2),(R40),(IF(OR(Rekenblad!$D$7=3),(S40),IF(OR(Rekenblad!$D$7=4),(T40),IF(OR(Rekenblad!$D$7=5),(U40),"")))))) -> 11.395 | K40: =Rekenblad!I28 -> 0 | N40: D. | O40: Trottoirband | P40: per m1 | Q40: =$L206 -> 11.395 | R40: 11.395 | S40: 11.395 | T40: 11.395 | U40: 11.395 | AA40: ZAAI KLAAR MAKEN | AB40: 100m2 berm, gazon | AD40: =1.59 -> 1.59 | AE40: =ROUND(AD40/100*$AF$51,2) -> 0.7 | AF40: =((AH55+AH56)/2+AE40)*1.5 -> 1.17234375 | AH40: 0.5
A41: 39 | B41: Beuningen | C41: 1 | D41: Postbus 14, 6640 AA BEUNINGEN | I41: =IF(OR(Rekenblad!$D$7=1),(Q41),IF(OR(Rekenblad!$D$7=2),(R41),(IF(OR(Rekenblad!$D$7=3),(S41),IF(OR(Rekenblad!$D$7=4),(T41),IF(OR(Rekenblad!$D$7=5),(U41),"")))))) -> 9.063 | K41: =Rekenblad!K28 -> 0 | O41: Opsluitband/koprol | P41: per m1 | Q41: 9.063 | R41: 9.063 | S41: 9.063 | T41: 9.063 | U41: 9.063 | AA41: INZAAIEN | AB41: 100m2 berm, gazon | AD41: =0.945 -> 0.945 | AE41: =ROUND(AD41/100*$AF$51,2) -> 0.42 | AF41: =((AH55+AH56)/2+AE41)*1.5 -> 0.75234375 | AH41: 0.5
A42: 40 | B42: Beverwijk | C42: 1 | D42: Postbus 450, 1940 AL BEVERWIJK | I42: =IF(OR(Rekenblad!$D$7=1),(Q42),IF(OR(Rekenblad!$D$7=2),(R42),(IF(OR(Rekenblad!$D$7=3),(S42),IF(OR(Rekenblad!$D$7=4),(T42),IF(OR(Rekenblad!$D$7=5),(U42),"")))))) -> 102.0084375 | K42: =IF(AND(Rekenblad!$E$33>0,Rekenblad!$E$33<=50),(1),0) -> 0 | O42: berm/gazon <50 m2 | P42: per reparatie | Q42: 102.0084375 | R42: 102.0084375 | S42: 102.0084375 | T42: 102.0084375 | U42: 102.0084375
A43: 41 | B43: Binnenmaas | C43: 4 | D43: Postbus 5455, 3299 ZH MAASDAM | I43: =IF(OR(Rekenblad!$D$7=1),(Q43),IF(OR(Rekenblad!$D$7=2),(R43),(IF(OR(Rekenblad!$D$7=3),(S43),IF(OR(Rekenblad!$D$7=4),(T43),IF(OR(Rekenblad!$D$7=5),(U43),"")))))) -> 2.04016875 | K43: =IF(AND(Rekenblad!$E$33>50),(Rekenblad!$E$33),0) -> 0 | O43: berm/gazon >50 m2 | P43: >50m2 | Q43: 2.04016875 | R43: 2.04016875 | S43: 2.04016875 | T43: 2.04016875 | U43: 2.04016875 | AA43: kosten loon groen per 01-07-2001 | AF43: Per uur
A44: 42 | B44: Bladel | C44: 1 | D44: Postbus 11, 5530 AA BLADEL | I44: =Rekenblad!H31 -> 0 | O44: bomen en struiken | P44: sts
A45: 43 | B45: Blaricum | C45: 1 | D45: Postbus 125, 1260 AC BLARICUM | I45: =Rekenblad!H32 -> 0 | O45: bomen en struiken | P45: sts | AA45: cultuurtechnisch medewerker | AC45: Elsevier GWW Kosten 1 juli 2003 | AF45: =Invoerscherm!E28 -> 30.15 | AG45: (met 5% ziekteverzuim)
A46: 44 | B46: Bloemendaal | C46: 1 | D46: Postbus 201, 2050 AE OVERVEEN | I46: =Rekenblad!N31 -> 0 | K46: =+IF(AND(Rekenblad!$K$31>0.1,Rekenblad!$L$31>0.1,Rekenblad!$M$31>1),(Rekenblad!$K$31*Rekenblad!$L$31*Rekenblad!$M$31),0) -> 0 | O46: asfalt | P46: per m2 | AA46: Transport | AC46: EVO-berekening DD. 03-01-2001 | AF46: =Invoerscherm!E29 -> 9.29 | AH46: + index 2,5%
A47: 45 | B47: Bodegraven-Reeuwijk | C47: 5 | D47: Postbus 401, 2410 AK BODEGRAVEN | I47: =Rekenblad!N32 -> 0 | K47: =+IF(AND(Rekenblad!$K$32>0.1,Rekenblad!$L$32>0.1,Rekenblad!$M$32>1),(Rekenblad!$K$32*Rekenblad!$L$32*Rekenblad!$M$32),0) -> 0 | O47: asfalt | P47: per m2 | AF47: =SUM(AF45:AF46) -> 39.44
A48: 46 | B48: Boekel | C48: 1 | D48: Postbus 99, 5427 ZH BOEKEL
A49: 47 | B49: Borger-Odoorn | C49: 1 | D49: Postbus 3, 7875 ZG EXLOO | AA49: Alg. kosten winst/risico aannemer | AE49: =12/100 -> 0.12 | AF49: =ROUND(AE49*AF47,2) -> 4.73
A50: 48 | B50: Borne | C50: 1 | D50: Postbus 200, 7620 AE BORNE
A51: 49 | B51: Borsele | C51: 1 | D51: Postbus 1, 4450 AA HEINKENSZAND | AD51: TOTAAL per manuur | AF51: =SUM(AF47:AF49) -> 44.17
A52: 50 | B52: Boxmeer | C52: 1 | D52: Postbus 450, 5830 AL BOXMEER
A53: 51 | B53: Boxtel | C53: 1 | D53: Postbus 10000, 5280 DA BOXTEL | AA53: kosten materiaal groen | AD53: Zaad kosten | AF53: gebruik | AG53: kosten | AH53: kosten | AI53: Prijzen zaaimateriaal uit
A54: 52 | B54: Breda | C54: 1 | D54: Postbus 90156, 4800 RH BREDA | AD54: per kg | AF54: kg/are | AG54: per are | AH54: per m2 | AI54: Elsevier/ GWW Kosten/ Groenvoorzieningen
A55: 53 | B55: Brielle | C55: 1 | D55: Postbus 101, 3230 AC BRIELLE | AA55: Graszaad | AB55: Bermmengsel | AD55: =Invoerscherm!E31 -> 7.15 | AF55: 0.75 | AG55: =AD55*AF55 -> 5.3625 | AH55: =AG55/100 -> 0.053625 | AI55: 2002-05-01
A56: 54 | B56: Bronckhorst | C56: 1 | D56: Postbus 200, 7255 ZJ HENGELO | AA56: Graszaad | AB56: Gazonmengsel | AD56: =Invoerscherm!E32 -> 7.3 | AF56: 1.5 | AG56: =AD56*AF56 -> 10.95 | AH56: =AG56/100 -> 0.1095
A57: 55 | B57: Brummen | C57: 1 | D57: Postbus 5, 6970 BV BRUMMEN
A58: 56 | B58: Brunssum | C58: 1 | D58: Postbus 250, 6440 AG BRUNSSUM
A59: 57 | B59: Bunnik | C59: 1 | D59: Postbus 5, 3980 CA BUNNINK | AA59: 2) ONDERHOUD | AE59: Percentage slechte grond
A60: 58 | B60: Bunschoten | C60: 1 | D60: Postbus 200, 3750 GE BUNSCHOTEN
A61: 59 | B61: Buren | C61: 1 | D61: Postbus 15, 4033 ZG LIENDEN | AE61: <50% | AF61: 50-60% | AG61: 60-70% | AH61: 70-80% | AI61: >80% | AJ61: 5 categorieën van
A62: 60 | B62: Capelle aan de IJssel | C62: 5 | D62: Postbus 70, 2900 AB CAPELLE AAN DE IJSSEL | AJ62: bodemgesteldheid
A63: 61 | B63: Castircum | C63: 1 | D63: Postbus 1301, 1900 BH CASTRICUM | AA63: na herstel in % van de totale uitvoeringskosten | AJ63: minder dan 50% slechte bodem
A64: 62 | B64: Coevorden | C64: 1 | D64: Postbus 2, 7740 AA COEVORDEN | AA64: RIJWEGEN | AB64: (klinkers, tegels) | AE64: 0.08 | AF64: 0.09 | AG64: 0.12 | AH64: 0.18 | AI64: 0.2 | AJ64: tussen 50-60% slechte bodem
A65: 63 | B65: Cranendonck | C65: 1 | D65: Postbus 2090, 6020 AB BUDEL | K65: Verdeling werkzaamheden: | O65: KLINKERS: | Q65: TEGELS: | AA65: VOET-FIETSPADEN | AB65: (tegels, klinkers) | AE65: 0.05 | AF65: 0.0575 | AG65: 0.08 | AH65: 0.1325 | AI65: 0.15 | AJ65: tussen 60-70% slechte bodem
A66: 64 | B66: Cromstrijen | C66: 1 | D66: Postbus 7400, 3280 AE NUMANSDORP | O66: Rijweg | P66: =80/100 -> 0.8 | Q66: Voetpad | R66: =95/100 -> 0.95 | AJ66: tussen 70-80 slechte bodem
A67: 65 | B67: Cuijk | C67: 1 | D67: Postbus 10001, 5430 DA CUIJK | O67: Voetpad | P67: =20/100 -> 0.2 | Q67: Rijweg | R67: =5/100 -> 0.05 | AJ67: meer dan 80% slechte bodem
A68: 66 | B68: Culemborg | C68: 3 | D68: Postbus 136, 4100 AC CULEMBERG
A69: 67 | B69: Dalfsen | C69: 1 | D69: Postbus 35, 7720 AA DALSEN | E69: Bodemgesteldheid: | J69: Rekenfactor: | L69: Onderhoud: | N69: Degeneratie: | R69: Beheer:
A70: 68 | B70: Dantumadeel | C70: 1 | D70: Postbus 22, 9104 BR DAMWOUDE | N70: klinker | O70: klinker | P70: tegels | Q70: tegels | R70: beheer | AA70: 3) DEGENERATIE | AE70: Percentage slechte grond
A71: 69 | B71: De Bilt | C71: 1 | D71: Postbus 300, 3720 AH BILTHOVEN | L71: rijweg | M71: voetpad | N71: < 15m2 | O71: > 15m2 | P71: < 15m2 | Q71: > 15m2 | R71: kosten
A72: 70 | B72: De Fryske Marren | C72: 1 | D72: Postbus 101, 8500 AC JOURE | AE72: <50% | AF72: 50-60% | AG72: 60-70% | AH72: 70-80% | AI72: >80% | AJ72: 5 categorieën van
A73: 71 | B73: De Marne | C73: 1 | D73: Postbus 11, 9965 ZG LEENS | AJ73: bodemgesteldheid
A74: 72 | B74: De Ronde Venen | C74: 2 | D74: Postbus 250, 3640 AG MIJDRECHT | E74: Categorie:1. | H74: <= 50% slechte bodem: | K74: 0 | L74: =8/100 -> 0.08 | M74: =5/100 -> 0.05 | N74: =32/100 -> 0.32 | O74: =13/100 -> 0.13 | P74: =0/100 -> 0 | Q74: =0/100 -> 0 | R74: =6/100 -> 0.06 | AA74: na herstel in % van de totale uitvoeringskosten | AJ74: minder dan 50% slechte bodem
A75: 73 | B75: De Wolden | C75: 1 | D75: Postbus 20, 7920 AA ZUIDWOLDE | E75: Categorie:2. | H75: > 50 <60% slechte bodem: | K75: 0.25 | L75: =(8/100)+0.25*(12/100-8/100) -> 0.09 | M75: =(5/100)+0.25*(8/100-5/100) -> 0.0575 | N75: =(32/100)+$K$75*(84/100-32/100) -> 0.45 | O75: =(13/100)+$K$75*(34/100-13/100) -> 0.1825 | P75: =(0/100)+$K$75*(16/100-0/100) -> 0.04 | Q75: =(0/100)+$K$75*(4/100-0/100) -> 0.01 | R75: =6/100 -> 0.06 | AA75: KLINKERS | AB75: < 15 m2 (per lasgat) | AE75: 0.32 | AF75: 0.45 | AG75: 0.84 | AH75: 1.29 | AI75: 1.58 | AJ75: tussen 50-60% slechte bodem
A76: 74 | B76: Delft | C76: 4 | D76: Postbus 78, 2600 ME DELFT | E76: Categorie:3. | H76: > 60 <70% slechte bodem: | K76: 0.5 | L76: =12/100 -> 0.12 | M76: =8/100 -> 0.08 | N76: =84/100 -> 0.84 | O76: =34/100 -> 0.34 | P76: =16/100 -> 0.16 | Q76: =4/100 -> 0.04 | R76: =6/100 -> 0.06 | AA76: KLINKERS | AB76: > 15 m2 (per m1 geul) | AE76: 0.13 | AF76: 0.1825 | AG76: 0.34 | AH76: 0.6775 | AI76: 0.79 | AJ76: tussen 60-70% slechte bodem
A77: 75 | B77: Delfzijl | C77: 3 | D77: Postbus 20000, 9930 PA DELFZIJL | E77: Categorie:4. | H77: > 70 <80% slechte bodem: | K77: 0.75 | L77: =(12/100)+0.75*(20/100-12/100) -> 0.18 | M77: =(8/100)+0.75*(15/100-8/100) -> 0.1325 | N77: =(84/100)+$K$77*(144/100-84/100) -> 1.29 | O77: =(34/100)+$K$77*(79/100-34/100) -> 0.6775 | P77: =(16/100)+$K$77*(56/100-16/100) -> 0.46 | Q77: =(4/100)+$K$77*(64/100-4/100) -> 0.49 | R77: =6/100 -> 0.06 | AA77: TEGELS | AB77: < 15 m2 (per lasgat) | AE77: 0 | AF77: 0.04 | AG77: 0.16 | AH77: 0.46 | AI77: 0.56 | AJ77: tussen 70-80 slechte bodem
A78: 76 | B78: Den Haag | C78: 1 | D78: Postbus 12600, 2500 DJ DEN HAAG | E78: Categorie:5. | H78: >= 80% slechte bodem: | K78: 1 | L78: =20/100 -> 0.2 | M78: =15/100 -> 0.15 | N78: =158/100 -> 1.58 | O78: =79/100 -> 0.79 | P78: =56/100 -> 0.56 | Q78: =64/100 -> 0.64 | R78: =6/100 -> 0.06 | AA78: TEGELS | AB78: > 15 m2 (per m1 geul) | AE78: 0 | AF78: 0.01 | AG78: 0.04 | AH78: 0.49 | AI78: 0.64 | AJ78: meer dan 80% slechte bodem
A79: 77 | B79: Den Helder | C79: 1 | D79: Postbus 36, 1780 AA DEN HELDER
A80: 78 | B80: Deurne | C80: 1 | D80: Postbus 3, 5750 AA DEURNE | K80: Klinkers: | N80: Tegels:
A81: 79 | B81: Deventer | C81: 1 | D81: Postbus 5000, 7400GC DEVENTER | I81: Opbouw: | K81: <15 m2 | L81: >15 m2 | M81: >100 m2 | N81: <15 m2 | O81: >15 m2 | P81: >100 m2
A82: 80 | B82: Diemen | C82: 5 | D82: Postbus 191, 1110 AD DIEMEN | E82: Tarief: A1 | H82: 1. | I82: Uitvoering: | J82: m2 | K82: =$AF$32 -> 28.92 | L82: =$AF$33 -> 23.65 | M82: =$AF$34 -> 21.01 | N82: =$AF$35 -> 22.91 | O82: =$AF$36 -> 17.64 | P82: =$AF$37 -> 16.58
A83: 81 | B83: Dinkelland | C83: 1 | D83: Postbus 11, 7590 AA DENEKAMP | H83: 2. | I83: Onderhoud: | J83: m2 | K83: =ROUND($P$66*($L$74*$AF$32)+$P$67*($M$74*$AF$32),2) -> 2.14 | L83: =ROUND($P$66*($L$74*$AF$33)+$P$67*($M$74*$AF$33),2) -> 1.75 | M83: =ROUND($P$66*($L$74*$AF$34)+$P$67*($M$74*$AF$34),2) -> 1.55 | N83: =ROUND($R$66*($M$74*$AF$35)+$R$67*($L$74*$N$82),2) -> 1.18 | O83: =ROUND($R$66*($M$74*$AF$36)+$R$67*($L$74*$AF$36),2) -> 0.91 | P83: =ROUND($R$66*($M$74*$AF$37)+$R$67*($L$74*$AF$37),2) -> 0.85
A84: 82 | B84: Doesburg | C84: 1 | D84: Postbus 100, 6980 AC DOESBURG | H84: 3a. | I84: Degeneratie | J84: pp | K84: =ROUND(($N$74*$AF$32)/1.185,2) -> 7.81 | L84: 0 | M84: 0 | N84: 0 | O84: 0 | P84: 0
A85: 83 | B85: Doetinchem | C85: 1 | D85: Postbus 9020, 7000 HA DOETINCHEM | H85: 3b. | I85: Degeneratie: | J85: m1 | K85: 0 | L85: =ROUND(($O$74*$AF$33)/1.185,2) -> 2.59 | M85: =ROUND(($O$74*$AF$34)/1.185,2) -> 2.3 | N85: =ROUND(($P$74*$L$82)/1.185,2) -> 0 | O85: =ROUND(($Q$74*$L$82)/1.185,2) -> 0 | P85: 0
A86: 84 | B86: Dongen | C86: 1 | D86: Postbus 10153, 5100 GE DONGEN | H86: 4. | I86: Beheerskosten: | J86: m2 | K86: =ROUND($R$74*$AF$32,2) -> 1.74 | L86: =ROUND($R$74*$AF$33,2) -> 1.42 | M86: =ROUND($R$74*$AF$34,2) -> 1.26 | N86: =ROUND($R$74*$AF$35,2) -> 1.37 | O86: =ROUND($R$74*$AF$36,2) -> 1.06 | P86: =ROUND($R$74*$AF$37,2) -> 0.99
A87: 85 | B87: Dongeradeel | C87: 1 | D87: Postbus 1, 9100 AA DOKKUM
A88: 86 | B88: Dordrecht | C88: 1 | D88: Postbus 8, 3300 AA DORDRECHT | K88: Klinkers: | N88: Tegels:
A89: 87 | B89: Drechterland | C89: 4 | D89: Postbus 9, 1616 ZG HOOGKARSPEL | E89: Tarief: A2 | H89: 2. | I89: Onderhoud: | J89: m2 | K89: =ROUND($P$66*($L$75*$AF$32)+$P$67*($M$75*$AF$32),2) -> 2.41 | L89: =ROUND($P$66*($L$75*$AF$33)+$P$67*($M$75*$AF$33),2) -> 1.97 | M89: =ROUND($P$66*($L$75*$AF$34)+$P$67*($M$75*$AF$34),2) -> 1.75 | N89: =ROUND($R$66*($M$75*$AF$35)+$R$67*($L$75*$AF$35),2) -> 1.35 | O89: =ROUND($R$66*($M$75*$AF$36)+$R$67*($L$75*$AF$36),2) -> 1.04 | P89: =ROUND($R$66*($M$75*$AF$37)+$R$67*($L$75*$AF$37),2) -> 0.98
A90: 88 | B90: Drimmelen | C90: 1 | D90: Postbus 19, 4920 AA MADE | H90: 3a. | I90: Degeneratie | J90: pp | K90: =ROUND(($N$75*$AF$32)/1.185,2) -> 10.98 | L90: 0 | M90: 0 | N90: =ROUND(($P$75*$AF$35)/1.185,2) -> 0.77 | O90: 0 | P90: 0
A91: 89 | B91: Dronten | C91: 1 | D91: Postbus 100, 8250 AC DRONTEN | H91: 3b. | I91: Degeneratie: | J91: m1 | K91: 0 | L91: =ROUND(($O$75*$AF$33)/1.185,2) -> 3.64 | M91: =ROUND(($O$75*$AF$34)/1.185,2) -> 3.24 | N91: 0 | O91: =ROUND(($Q$75*$AF$36)/1.185,2) -> 0.15 | P91: =ROUND(($Q$75*$AF$37)/1.185,2) -> 0.14
A92: 90 | B92: Druten | C92: 1 | D92: Postbus 1, 6650 AA DRUTEN | H92: 4. | I92: Beheerskosten: | J92: m2 | K92: =ROUND($R$75*$AF$32,2) -> 1.74 | L92: =ROUND($R$75*$AF$33,2) -> 1.42 | M92: =ROUND($R$75*$AF$34,2) -> 1.26 | N92: =ROUND($R$75*$AF$35,2) -> 1.37 | O92: =ROUND($R$75*$AF$36,2) -> 1.06 | P92: =ROUND($R$75*$AF$37,2) -> 0.99
A93: 91 | B93: Duiven | C93: 1 | D93: Postbus 6, 6920 AA DUIVEN
A94: 92 | B94: Echt-Susteren | C94: 1 | D94: Postbus 450, 6100 AL ECHT | K94: Klinkers: | N94: Tegels:
A95: 93 | B95: Edam-Volendam | C95: 4 | D95: Postbus 180, 1130 AD VOLENDAM | E95: Tarief: A3 | H95: 2. | I95: Onderhoud: | J95: m2 | K95: =ROUND($P$66*($L$76*$AF$32)+$P$67*($M$76*$AF$32),2) -> 3.24 | L95: =ROUND($P$66*($L$76*$AF$33)+$P$67*($M$76*$AF$33),2) -> 2.65 | M95: =ROUND($P$66*($L$76*$AF$34)+$P$67*($M$76*$AF$34),2) -> 2.35 | N95: =ROUND($R$66*($M$76*$AF$35)+$R$67*($L$76*$AF$35),2) -> 1.88 | O95: =ROUND($R$66*($M$76*$AF$36)+$R$67*($L$76*$AF36),2) -> 1.45 | P95: =ROUND($R$66*($M$76*$AF$37)+$R$67*($L$76*$AF$37),2) -> 1.36
A96: 94 | B96: Ede | C96: 1 | D96: Postbus 9022, 6710 HK EDE | H96: 3a. | I96: Degeneratie | J96: pp | K96: =ROUND(($N$76*$AF$32)/1.185,2) -> 20.5 | L96: 0 | M96: 0 | N96: =ROUND(($P$76*$AF$35)/1.185,2) -> 3.09 | O96: 0 | P96: 0
A97: 95 | B97: Eemnes | C97: 1 | D97: Postbus 71, 3755 AN EEMNES | H97: 3b. | I97: Degeneratie: | J97: m1 | K97: 0 | L97: =ROUND(($O$76*$AF$33)/1.185,2) -> 6.79 | M97: =ROUND(($O$76*$AF$34)/1.185,2) -> 6.03 | N97: 0 | O97: =ROUND(($Q$76*$AF$36)/1.185,2) -> 0.6 | P97: =ROUND(($Q$76*$AF$37)/1.185,2) -> 0.56
A98: 96 | B98: Eemsmond | C98: 1 | D98: Postbus 11, 9980 AA UITHUIZEN | H98: 4. | I98: Beheerskosten: | J98: m2 | K98: =ROUND($R$76*$AF$32,2) -> 1.74 | L98: =ROUND($R$76*$AF$33,2) -> 1.42 | M98: =ROUND($R$76*$AF$34,2) -> 1.26 | N98: =ROUND($R$76*$AF$35,2) -> 1.37 | O98: =ROUND($R$76*$AF$36,2) -> 1.06 | P98: =ROUND($R$76*$AF$37,2) -> 0.99
A99: 97 | B99: Eersel | C99: 1 | D99: Postbus 12, 5520 AA EERSEL
A100: 98 | B100: Eijsden-Margraten | C100: 1 | D100: Postbus 10, 6269 ZG MARGRATEN | K100: Klinkers: | N100: Tegels:
A101: 99 | B101: Eindhoven | C101: 1 | D101: Postbus 90150, 5600 RB EINDHOVEN | E101: Tarief: A4 | H101: 2. | I101: Onderhoud: | J101: m2 | K101: =ROUND($P$66*($L$77*$AF$32)+$P$67*($M$77*$AF$32),2) -> 4.93 | L101: =ROUND($P$66*($L$77*$AF$33)+$P$67*($M$77*$AF$33),2) -> 4.03 | M101: =ROUND($P$66*($L$77*$AF$34)+$P$67*($M$77*$AF$34),2) -> 3.58 | N101: =ROUND($R$66*($M$77*$AF$35)+$R$67*($L$77*$AF$35),2) -> 3.09 | O101: =ROUND($R$66*($M$77*$AF$36)+$R$67*($L$77*$AF$36),2) -> 2.38 | P101: =ROUND($R$66*($M$77*$AF$37)+$R$67*($L$77*$AF$37),2) -> 2.24
A102: 100 | B102: Elburg | C102: 1 | D102: Postbus 70, 8080 AB ELBURG | H102: 3a. | I102: Degeneratie | J102: pp | K102: =ROUND(($N$77*$AF$32)/1.185,2) -> 31.48 | L102: 0 | M102: 0 | N102: =ROUND(($P$77*$AF$35)/1.185,2) -> 8.89 | O102: 0 | P102: 0
A103: 101 | B103: Emmen | C103: 1 | D103: Postbus 3001, 7800 AA EMMEN | H103: 3b. | I103: Degeneratie: | J103: m1 | K103: 0 | L103: =ROUND(($O$77*$AF$33)/1.185,2) -> 13.52 | M103: =ROUND(($O$77*$AF$34)/1.185,2) -> 12.01 | N103: 0 | O103: =ROUND(($Q$77*$AF$36)/1.185,2) -> 7.29 | P103: =ROUND(($Q$77*$AF$37)/1.185,2) -> 6.86
A104: 102 | B104: Enkhuizen | C104: 4 | D104: Postbus 11, 1600 AA ENKHUIZEN | H104: 4. | I104: Beheerskosten: | J104: m2 | K104: =ROUND($R$77*$AF$32,2) -> 1.74 | L104: =ROUND($R$77*$AF$33,2) -> 1.42 | M104: =ROUND($R$77*$AF$34,2) -> 1.26 | N104: =ROUND($R$77*$AF$35,2) -> 1.37 | O104: =ROUND($R$77*$AF$36,2) -> 1.06 | P104: =ROUND($R$77*$AF$37,2) -> 0.99
A105: 103 | B105: Enschede | C105: 1 | D105: Postbus 20, 7500 AA ENSCHEDE
A106: 104 | B106: Epe | C106: 1 | D106: Postbus 600, 8160 AP EPE | K106: Klinkers: | N106: Tegels:
A107: 105 | B107: Ermelo | C107: 1 | D107: Postbus 500, 3850 AM ERMELO | E107: Tarief: A5 | H107: 2. | I107: Onderhoud: | J107: m2 | K107: =ROUND($P$66*($L$78*$AF$32)+$P$67*($M$78*$AF$32),2) -> 5.49 | L107: =ROUND($P$66*($L$78*$AF$33)+$P$67*($M$78*$AF$33),2) -> 4.49 | M107: =ROUND($P$66*($L$78*$AF$34)+$P$67*($M$78*$AF$34),2) -> 3.99 | N107: =ROUND($R$66*($M$78*$AF$35)+$R$67*($L$78*$AF$35),2) -> 3.49 | O107: =ROUND($R$66*($M$78*$AF$36)+$R$67*($L$78*$AF$36),2) -> 2.69 | P107: =ROUND($R$66*($M$78*$AF$37)+$R$67*($L$78*$AF$37),2) -> 2.53
A108: 106 | B108: Etten-Leur | C108: 1 | D108: Postbus 10100, 4870 GA ETTEN-LEUR | H108: 3a. | I108: Degeneratie | J108: pp | K108: =ROUND(($N$78*$AF$32)/1.185,2) -> 38.56 | L108: 0 | M108: 0 | N108: =ROUND(($P$78*$AF$35)/1.185,2) -> 10.83 | O108: 0 | P108: 0
A109: 107 | B109: Ferwerderadiel | C109: 1 | D109: Postbus 2, 9172 ZS FERWERT | H109: 3b. | I109: Degeneratie: | J109: m1 | K109: 0 | L109: =ROUND(($O$78*$AF$33)/1.185,2) -> 15.77 | M109: =ROUND(($O$78*$AF$34)/1.185,2) -> 14.01 | N109: 0 | O109: =ROUND(($Q$78*$AF$36)/1.185,2) -> 9.53 | P109: =ROUND(($Q$78*$AF$37)/1.185,2) -> 8.95
A110: 108 | B110: Franekeradeel | C110: 1 | D110: Postbus 58, 8800 AB FRANEKER | H110: 4. | I110: Beheerskosten: | J110: m2 | K110: =ROUND($R$78*$AF$32,2) -> 1.74 | L110: =ROUND($R$78*$AF$33,2) -> 1.42 | M110: =ROUND($R$78*$AF$34,2) -> 1.26 | N110: =ROUND($R$78*$AF$35,2) -> 1.37 | O110: =ROUND($R$78*$AF$36,2) -> 1.06 | P110: =ROUND($R$78*$AF$37,2) -> 0.99
A111: 109 | B111: Geertruidenberg | C111: 1 | D111: Postbus 10001, 4940 GA RAAMSDONKSVEER
A112: 110 | B112: Geldermalsen | C112: 3 | D112: Postbus 112, 4190 CG GELDERMALSEN
A113: 111 | B113: Geldrop-Mierlo | C113: 1 | D113: Postbus 10101, 5660 GA GELDROP
A114: 112 | B114: Gemert-Bakel | C114: 1 | D114: Postbus 10000, 5420 DA GEMERT
A115: 113 | B115: Gennep | C115: 1 | D115: Postbus 9003, 6590 HD GENNEP | E115: Tarief: B1,1 | H115: B1 | I115: klinkers | J115: < 15 m2 | L115: =$K$86 -> 1.74 | M115: per m2 | N115: + per reparatie | P115: =$K$84 -> 7.81
A116: 114 | B116: Giessenlanden | C116: 5 | D116: Postbus 1, 4223 ZG HOORNAAR | H116: B2 | I116: tegels | J116: < 15 m2 | L116: =$N$86 -> 1.37 | M116: per m2 | N116: + per reparatie | P116: =$O$96 -> 0
A117: 115 | B117: Gilze en Rijen | C117: 1 | D117: Postbus 73, 5120 AB RIJEN | H117: B3 | I117: klinkers | J117: > 15 m2 | L117: =$L$86 -> 1.42 | M117: per m2 | N117: + per m1 sleuflengte | P117: =$L$85 -> 2.59
A118: 116 | B118: Goeree-Overflakkee | C118: 1 | D118: Postbus 1, 3240 AA MIDDELHARNIS | H118: B4 | I118: tegels | J118: > 15 m2 | L118: =$O$86 -> 1.06 | M118: per m2 | N118: + per m1 sleuflengte | P118: =$O$85 -> 0
A119: 117 | B119: Goes | C119: 1 | D119: Postbus 2118, 4460 MC GOES
A120: 118 | B120: Goirle | C120: 1 | D120: Postbus 17, 5050 AA GOIRLE
A121: 119 | B121: Gooise Meren | C121: 1 | D121: Postbus 6000, 1400 HA BUSSUM | E121: Tarief: B1,2 | H121: B1 | I121: klinkers | J121: < 15 m2 | L121: =$K$92 -> 1.74 | M121: per m2 | N121: + per reparatie | P121: =$K$90 -> 10.98
A122: 120 | B122: Gorichem | C122: 5 | D122: Postbus 108, 4200 AC GORINCHEM | H122: B2 | I122: tegels | J122: < 15 m2 | L122: =$N$92 -> 1.37 | M122: per m2 | N122: + per reparatie | P122: =$N$90 -> 0.77
A123: 121 | B123: Gouda | C123: 5 | D123: Postbus 1086, 2800 BB GOUDA | H123: B3 | I123: klinkers | J123: > 15 m2 | L123: =$L$92 -> 1.42 | M123: per m2 | N123: + per m1 sleuflengte | P123: =$L$91 -> 3.64
A124: 122 | B124: Grave | C124: 1 | D124: Postbus 7, 5360 AA GRAVE | H124: B4 | I124: tegels | J124: > 15 m2 | L124: =$O$92 -> 1.06 | M124: per m2 | N124: + per m1 sleuflengte | P124: =$O$91 -> 0.15
A125: 123 | B125: Groningen | C125: 2 | D125: Postbus 2001, 9700 PB GRONINGEN
A126: 124 | B126: Grootegast | C126: 1 | D126: Postbus 46, 9860 AA GROOTEGAST
A127: 125 | B127: Gulpen-Wittem | C127: 1 | D127: Postbus 56, 6270 AB GULPEN | E127: Tarief: B1,3 | H127: B1 | I127: klinkers | J127: < 15 m2 | L127: =$K$98 -> 1.74 | M127: per m2 | N127: + per reparatie | P127: =$K$96 -> 20.5
A128: 126 | B128: Haaksbergen | C128: 1 | D128: Postbus 102, 7480 AC HAAKSBERGEN | H128: B2 | I128: tegels | J128: < 15 m2 | L128: =$N$98 -> 1.37 | M128: per m2 | N128: + per reparatie | P128: =$N$96 -> 3.09
A129: 127 | B129: Haaren | C129: 1 | D129: Postbus 44, 5076 ZG HAAREN | H129: B3 | I129: klinkers | J129: > 15 m2 | L129: =$L$98 -> 1.42 | M129: per m2 | N129: + per m1 sleuflengte | P129: =$L$97 -> 6.79
A130: 128 | B130: Haarlem | C130: 1 | D130: Postbus 511, 2003 PB HAARLEM | H130: B4 | I130: tegels | J130: > 15 m2 | L130: =$O$98 -> 1.06 | M130: per m2 | N130: + per m1 sleuflengte | P130: =$O$97 -> 0.6
A131: 129 | B131: Haarlemmerliede en Spaarnewoude | C131: 1 | D131: Postbus 83, 1160 AB ZWANENBURG
A132: 130 | B132: Haarlemmermeer | C132: 2 | D132: Postbus 250, 2130 AG HOOFDDORP
A133: 131 | B133: Halderberge | C133: 1 | D133: Postbus 5, 4730 AA OUDENBOSCH | E133: Tarief: B1,4 | H133: B1 | I133: klinkers | J133: < 15 m2 | L133: =$K$104 -> 1.74 | M133: per m2 | N133: + per reparatie | P133: =$K$102 -> 31.48
A134: 132 | B134: Hardenberg | C134: 1 | D134: Postbus 500, 7770 BA HARDENBERG | H134: B2 | I134: tegels | J134: < 15 m2 | L134: =$N$104 -> 1.37 | M134: per m2 | N134: + per reparatie | P134: =$N$102 -> 8.89
A135: 133 | B135: Harderwijk | C135: 1 | D135: Postbus 149, 3840 AC HARDERWIJK | H135: B3 | I135: klinkers | J135: > 15 m2 | L135: =$L$104 -> 1.42 | M135: per m2 | N135: + per m1 sleuflengte | P135: =$L$103 -> 13.52
A136: 134 | B136: Hardinxveld-Giessendam | C136: 5 | D136: Postbus 175, 3370 AD HARDINXVELD-GIESSENDAM | H136: B4 | I136: tegels | J136: > 15 m2 | L136: =$O$104 -> 1.06 | M136: per m2 | N136: + per m1 sleuflengte | P136: =$O$103 -> 7.29
A137: 135 | B137: Haren | C137: 1 | D137: Postbus 21, 9750 AA HAREN
A138: 136 | B138: Harlingen | C138: 1 | D138: Postbus 10000, 8860 HA HARLINGEN | E138: Tarief: B1,5 | H138: B1 | I138: klinkers | J138: < 15 m2 | L138: =$K$110 -> 1.74 | M138: per m2 | N138: + per reparatie | P138: =$K$108 -> 38.56
A139: 137 | B139: Hattem | C139: 1 | D139: Postbus 93, 8050 AB HATTUM | H139: B2 | I139: tegels | J139: < 15 m2 | L139: =$N$110 -> 1.37 | M139: per m2 | N139: + per reparatie | P139: =$N$108 -> 10.83
A140: 138 | B140: Heemskerk | C140: 1 | D140: Postbus 39, 1960 AA HEEMSKERK | H140: B3 | I140: klinkers | J140: > 15 m2 | L140: =$L$110 -> 1.42 | M140: per m2 | N140: + per m1 sleuflengte | P140: =$L$109 -> 15.77
A141: 139 | B141: Heemstede | C141: 1 | D141: Postbus 352, 2100 AJ HEEMSTEDE | H141: B4 | I141: tegels | J141: > 15 m2 | L141: =$O$110 -> 1.06 | M141: per m2 | N141: + per m1 sleuflengte | P141: =$O$109 -> 9.53
A142: 140 | B142: Heerde | C142: 1 | D142: Postbus 175, 8180 AD HEERDE
A143: 141 | B143: Heerenveen | C143: 1 | D143: Postbus 15000, 8440 GA HEERENVEEN
A144: 142 | B144: Heerhugowaard | C144: 1 | D144: Postbus 390, 1700 AJ HEERHUGOWAARD | E144: Tarief: B2,1 | H144: B1 | I144: klinkers | J144: < 15 m2 | L144: =SUM($K$83,$K$86) -> 3.88 | M144: per m2 | N144: + per reparatie | P144: =$K$84 -> 7.81
A145: 143 | B145: Heerlen | C145: 1 | D145: Postbus 1, 6400 AA HEERLEN | H145: B2 | I145: tegels | J145: < 15 m2 | L145: =SUM($N$83,$N$86) -> 2.55 | M145: per m2 | N145: + per reparatie | P145: =$O$96 -> 0
A146: 144 | B146: Heeze-Leende | C146: 1 | D146: Postbus 10000, 5590 GA HEEZE | H146: B3 | I146: klinkers | J146: > 15 m2 | L146: =SUM($L$83,$L$86) -> 3.17 | M146: per m2 | N146: + per m1 sleuflengte | P146: =$L$85 -> 2.59
A147: 145 | B147: Heiloo | C147: 1 | D147: Postbus 1, 1850 AA HEILOO | H147: B4 | I147: tegels | J147: > 15 m2 | L147: =SUM($O$83,$O$86) -> 1.97 | M147: per m2 | N147: + per m1 sleuflengte | P147: =$O$85 -> 0
A148: 146 | B148: Hellendoorn | C148: 1 | D148: Postbus 200, 7440 AE NIJVERDAL
A149: 147 | B149: Hellevoetsluis | C149: 1 | D149: Postbus 13, 3220 AA HELLEVOETSLUIS
A150: 148 | B150: Helmond | C150: 1 | D150: Postbus 950, 5700 AZ HELMOND | E150: Tarief: B2,2 | H150: B1 | I150: klinkers | J150: < 15 m2 | L150: =SUM($K$89,$K$92) -> 4.15 | M150: per m2 | N150: + per reparatie | P150: =$K$90 -> 10.98
A151: 149 | B151: Hendrik-Ido-Ambacht | C151: 4 | D151: Postbus 34, 3340 AA HENDRIK-IDO-AMBACHT | H151: B2 | I151: tegels | J151: < 15 m2 | L151: =SUM($N$89,$N$92) -> 2.72 | M151: per m2 | N151: + per reparatie | P151: =$N$90 -> 0.77
A152: 150 | B152: Hengelo (O.) | C152: 1 | D152: Postbus 18, 7550 AA HENGELO | H152: B3 | I152: klinkers | J152: > 15 m2 | L152: =SUM($L$89,$L$92) -> 3.39 | M152: per m2 | N152: + per m1 sleuflengte | P152: =$L$91 -> 3.64
A153: 151 | B153: Het Bildt | C153: 1 | D153: Postbus 34, 9076 ZN ST. ANNAPAROCHIE | H153: B4 | I153: tegels | J153: > 15 m2 | L153: =SUM($O$89,$O$92) -> 2.1 | M153: per m2 | N153: + per m1 sleuflengte | P153: =$O$91 -> 0.15
A154: 152 | B154: Heumen | C154: 1 | D154: Postbus 200, 6800 AZ MALDEN
A155: 153 | B155: Heusden | C155: 1 | D155: Postbus 31, 5250 AA VLIJMEN
A156: 154 | B156: Hillegom | C156: 1 | D156: Postbus 32, 2180 AA HILLEGOM | E156: Tarief: B2,3 | H156: B1 | I156: klinkers | J156: < 15 m2 | L156: =SUM($K$95,$K$98) -> 4.98 | M156: per m2 | N156: + per reparatie | P156: =$K$96 -> 20.5
A157: 155 | B157: Hilvarenbeek | C157: 1 | D157: Postbus 3, 5080 AA HILVARENBEEK | H157: B2 | I157: tegels | J157: < 15 m2 | L157: =SUM($N$95,$N$98) -> 3.25 | M157: per m2 | N157: + per reparatie | P157: =$N$96 -> 3.09
A158: 156 | B158: Hilversum | C158: 1 | D158: Postbus 9900, 12101 GM HILVERSUM | H158: B3 | I158: klinkers | J158: > 15 m2 | L158: =SUM($L$95,$L$98) -> 4.07 | M158: per m2 | N158: + per m1 sleuflengte | P158: =$L$97 -> 6.79
A159: 157 | B159: Hof van Twente | C159: 1 | D159: Postbus 54, 7470 AB GOOR | H159: B4 | I159: tegels | J159: > 15 m2 | L159: =SUM($O$95,$O$98) -> 2.51 | M159: per m2 | N159: + per m1 sleuflengte | P159: =$O$97 -> 0.6
A160: 158 | B160: Hollands Kroon | C160: 1 | D160: Postbus 8, 1760 AA ANNA PAULOWNA
A161: 159 | B161: Hoogeveen | C161: 1 | D161: Postbus 20000, 7900 PA HOOGEVEEN
A162: 160 | B162: Hoogezand -Sappemeer | C162: 1 | D162: Postbus 75, 9600 AB HOOGEZAND | E162: Tarief: B2,4 | H162: B1 | I162: klinkers | J162: < 15 m2 | L162: =SUM($K$101,$K$104) -> 6.67 | M162: per m2 | N162: + per reparatie | P162: =$K$102 -> 31.48
A163: 161 | B163: Hoorn | C163: 5 | D163: Postbus 603, 1620 AR HOORN | H163: B2 | I163: tegels | J163: < 15 m2 | L163: =SUM($N$101,$N$104) -> 4.46 | M163: per m2 | N163: + per reparatie | P163: =$N$102 -> 8.89
A164: 162 | B164: Horst aan de Maas | C164: 1 | D164: Postbus 6005, 5960 AA HORST | H164: B3 | I164: klinkers | J164: > 15 m2 | L164: =SUM($L$101,$L$104) -> 5.45 | M164: per m2 | N164: + per m1 sleuflengte | P164: =$L$103 -> 13.52
A165: 163 | B165: Houten | C165: 1 | D165: Postbus 30, 3990 DA HOUTEN | H165: B4 | I165: tegels | J165: > 15 m2 | L165: =SUM($O$101,$O$104) -> 3.44 | M165: per m2 | N165: + per m1 sleuflengte | P165: =$O$103 -> 7.29
A166: 164 | B166: Huizen | C166: 1 | D166: Postbus 5, 1270 AA HUIZEN
A167: 165 | B167: Hulst | C167: 1 | D167: Postbus 49, 4560 AA HULST
A168: 166 | B168: IJsselstein | C168: 1 | D168: Postbus 26, 3400 AA IJSSELSTEIN | E168: Tarief: B2,5 | H168: B1 | I168: klinkers | J168: < 15 m2 | L168: =SUM($K$107,$K$110) -> 7.23 | M168: per m2 | N168: + per reparatie | P168: =$K$108 -> 38.56
A169: 167 | B169: Kaag en Braassem | C169: 3 | D169: Postbus 1, 2370 AA ROELOFARENDSVEEN | H169: B2 | I169: tegels | J169: < 15 m2 | L169: =SUM($N$107,$N$110) -> 4.86 | M169: per m2 | N169: + per reparatie | P169: =$N$108 -> 10.83
A170: 168 | B170: Kampen | C170: 1 | D170: Postbus 5009, 8260 GA KAMPEN | H170: B3 | I170: klinkers | J170: > 15 m2 | L170: =SUM($L$107,$L$110) -> 5.91 | M170: per m2 | N170: + per m1 sleuflengte | P170: =$L$109 -> 15.77
A171: 169 | B171: Kapelle | C171: 1 | D171: Postbus 79, 4420 AC KAPELLE | H171: B4 | I171: tegels | J171: > 15 m2 | L171: =SUM($O$107,$O$110) -> 3.75 | M171: per m2 | N171: + per m1 sleuflengte | P171: =$O$109 -> 9.53
A172: 170 | B172: Katwijk | C172: 1 | D172: Postbus 589, 2220 AN KATWIJK
A173: 171 | B173: Kerkrade | C173: 1 | D173: Postbus 600, 6460 AP KERKRADE
A174: 172 | B174: Koggenland | C174: 5 | D174: Postbus 21 1633 ZG AVENHORN
A175: 173 | B175: Kollumerland en Nieuwkruisland | C175: 1 | D175: Postbus 13, 9290 AA KOLLUM
A176: 174 | B176: Korendijk | C176: 1 | D176: Postbus 3708, 3265 ZG PIERSHIL | E176: Tarief: C1 | H176: C1 | I176: klinkers | J176: < 15 m2 | L176: =($AF$32/2)/1.2+$K$83+$K$86 -> 15.93 | M176: per m2
A177: 175 | B177: Krimpen aan den IJssel | C177: 5 | D177: Postbus 200, 2922 AE KRIMPEN AAN DE IJSSEL | H177: C2 | I177: tegels | J177: < 15 m2 | L177: =($AF$35/2)/1.2+$N$83+$N$86 -> 12.09583333 | M177: per m2
A178: 176 | B178: Krimpenerwaard | C178: 5 | D178: Postbus 51, 2820 AB STOLWIJK | H178: C3 | I178: klinkers | J178: > 15 m2 | L178: =($AF$33/2)/1.2+$L$83+$L$86 -> 13.02416667 | M178: per m2
A179: 177 | B179: Laarbeek | C179: 1 | D179: Postbus 190, 5740 AD BEEK EN DONK | H179: C4 | I179: tegels | J179: > 15 m2 | L179: =($AF$36/2)/1.2+$O$83+$O$86 -> 9.32 | M179: per m2
A180: 178 | B180: Landerd | C180: 1 | D180: Postbus 35, 5410 AA ZEELAND
A181: 179 | B181: Landgraaf | C181: 1 | D181: Postbus 31000, 6370 AA LANDGRAAF
A182: 180 | B182: Landsmeer | C182: 5 | D182: Postbus 1, 1120 AA LANDSMEER | E182: Tarief: C2 | H182: C1 | I182: klinkers | J182: < 15 m2 | L182: =($AF$32/2)/1.2+$K$89+$K$92 -> 16.2 | M182: per m2
A183: 181 | B183: Langedijk | C183: 1 | D183: Postbus 15, 1723 ZG NOORD-SCHARWOUDE | H183: C2 | I183: tegels | J183: < 15 m2 | L183: =($AF$35/2)/1.2+$N$89+$N$92 -> 12.26583333 | M183: per m2
A184: 182 | B184: Lansingerland | C184: 5 | D184: Postbus 1, 2650 AA BERKEL & RODENRIJS | H184: C3 | I184: klinkers | J184: > 15 m2 | L184: =($AF$33/2)/1.2+$L$89+$L$92 -> 13.24416667 | M184: per m2
A185: 183 | B185: Laren | C185: 1 | D185: Postbus 5, 1250 AA LAREN | H185: C4 | I185: tegels | J185: > 15 m2 | L185: =($AF$36/2)/1.2+$O$89+$O$92 -> 9.45 | M185: per m2
A186: 184 | B186: Leek | C186: 1 | D186: Postbus 100, 9350 AC LEEK
A187: 185 | B187: Leerdam | C187: 3 | D187: Postbus 15, 4140 AA LEERDAM
A188: 186 | B188: Leeuwarden | C188: 1 | D188: Postbus 21000, 8900 JA LEEUWARDEN | E188: Tarief: C3 | H188: C1 | I188: klinkers | J188: < 15 m2 | L188: =($AF$32/2)/1.2+$K$95+$K$98 -> 17.03 | M188: per m2
A189: 187 | B189: Leeuwarderadeel | C189: 2 | D189: Postbus 24, 9050 AA STIENS | H189: C2 | I189: tegels | J189: < 15 m2 | L189: =($AF$35/2)/1.2+$N$95+$N$98 -> 12.79583333 | M189: per m2
A190: 188 | B190: Leiden | C190: 1 | D190: Postbus 9100, 2300 PC LEIDEN | H190: C3 | I190: klinkers | J190: > 15 m2 | L190: =($AF$33/2)/1.2+$L$95+$L$98 -> 13.92416667 | M190: per m2
A191: 189 | B191: Leiderdorp | C191: 3 | D191: Postbus 35, 2353 AA LEIDERDORP | H191: C4 | I191: tegels | J191: > 15 m2 | L191: =($AF$36/2)/1.2+$O$95+$O$98 -> 9.86 | M191: per m2
A192: 190 | B192: Leidschendam-Voorburg | C192: 1 | D192: Postbus 905, 2270 AX VOORBURG
A193: 191 | B193: Lelystad | C193: 1 | D193: Postbus 91, 8200 AB LELYSTAD
A194: 192 | B194: Leudal | C194: 1 | D194: Postbus 3008, 6093 ZG HEYTHUYSEN | E194: Tarief: C4 | H194: C1 | I194: klinkers | J194: < 15 m2 | L194: =($AF$32/2)/1.2+$K$101+$K$104 -> 18.72 | M194: per m2
A195: 193 | B195: Leusden | C195: 1 | D195: Postbus 150, 3830 AD LEUSDEN | H195: C2 | I195: tegels | J195: < 15 m2 | L195: =($AF$35/2)/1.2+$N$101+$N$104 -> 14.00583333 | M195: per m2
A196: 194 | B196: Lingewaal | C196: 3 | D196: Postbus 1014, 4147 ZG ASPEREN | H196: C3 | I196: klinkers | J196: > 15 m2 | L196: =($AF$33/2)/1.2+$L$101+$L$104 -> 15.30416667 | M196: per m2
A197: 195 | B197: Lingewaard | C197: 1 | D197: Postbus 15, 6680 AA BEMMEL | H197: C4 | I197: tegels | J197: > 15 m2 | L197: =($AF$36/2)/1.2+$O$101+$O$104 -> 10.79 | M197: per m2
A198: 196 | B198: Lisse | C198: 1 | D198: Postbus 200, 2160 AE LISSE
A199: 197 | B199: Littenseradiel | C199: 1 | D199: Postbus 1, 8730 AA WOMMELS
A200: 198 | B200: Lochem | C200: 1 | D200: Postbus 17, 7240 AA LOCHEM | E200: Tarief: C5 | H200: C1 | I200: klinkers | J200: < 15 m2 | L200: =($AF$32/2)/1.2+$K$107+$K$110 -> 19.28 | M200: per m2
... 198 more rows

Sheet Invoerscherm
C1: Invoerscherm:
C2: Gegevens uit: Uitgave Reed Business Informatie Bouw & Infra.
D3: bijgewerkt dd : | E3: 2016-11-11
B4: Boekje: 1 | C4: GWW Kosten: | D4: uurtarieven en loonkosten*
D5: huidige tarief: | E5: in te voeren:
C6: Straatmaker groep D, inzittende werkbus: | D6: ='Gemeenten met categorie'!AF9 -> 35.42 | E6: 35.42
C7: Straatmaker groep B, inzittende werkbus: | D7: ='Gemeenten met categorie'!AF10 -> 33.68 | E7: 33.68
C8: Transport , EVO berekening | D8: ='Gemeenten met categorie'!AF11 -> 9.29 | E8: 9.29
B10: Boekje 2: | C10: GWW Kosten: | D10: Funderingslagen en elementverhardingen
D11: huidige tarief: | E11: in te voeren:
C12: Straatstenen, gebakken
C13: Straatklinkers WF kwaliteit A4-12 tot en met 5000 stuks | D13: ='Gemeenten met categorie'!AI22 -> 357 | E13: 357
C14: Straatklinkers KK 80 kwaliteit A4-12 tot en met 5000 stuks | D14: ='Gemeenten met categorie'!AI23 -> 550 | E14: 550
C16: Straatstenen, beton:
C17: Betonstraatstenen KF, heide, 210 x 105 x 80 mm volle vracht | D17: ='Gemeenten met categorie'!AI24 -> 239 | E17: 239
C19: Tegels beton: | F19: * | G19: Bij een juiste invoer en acceptatie zijn de tarieven in de kolom: - huidige tarief en - in te voeren gelijk !!!
C20: Betontegels, 300 x 300 x 45mm komo, grijs | D20: ='Gemeenten met categorie'!AL22 -> 8.03 | E20: 8.03
C21: Betontegels, 300 x 300 x 80mm komo, grijs | D21: ='Gemeenten met categorie'!AL23 -> 11.55 | E21: 11.55
C23: Straatzand:
C24: Straatzand 10 - 25m3 | D24: ='Gemeenten met categorie'!AL24 -> 10.75 | E24: 10.75
B26: Boekje 3: | C26: GWW Kosten: | D26: Groenvoorzieningen
D27: huidige tarief: | E27: in te voeren:
C28: Uurtarief Cultuurtechnisch medewerker | D28: ='Gemeenten met categorie'!AF45 -> 30.15 | E28: 30.15
C29: Transport , EVO berekening | D29: =Invoerscherm!D8 -> 9.29 | E29: 9.29
C31: Graszaad, bermmengsel, tot 200kg | D31: ='Gemeenten met categorie'!AD55 -> 7.15 | E31: 7.15
C32: Graszaad, gazonmengsel, tot 200kg | D32: ='Gemeenten met categorie'!AD56 -> 7.3 | E32: 7.3

Sheet INFO
C2: Werking "Rekenblad":
B3: - | C3: Door de groene posities in te vullen vindt de verrekening plaats volgens de "Richtlijn tarieven (graaf) werkzaamheden Telecom".
B4: - | C4: Om de bomen, struiken en het asfalt te kunnen verrekenen kan een projektprijs worden afgesproken en ingevoerd.
B5: - | C5: Door scrollen kan de gemeente worden ingesteld en daarna opgeslagen. Dus een éénmalige actie!
B6: - | C6: Tevens kan door scrollen de aard van de werkzaamheden worden ingesteld.
B7: - | C7: Door beide scrollbeweging uit te voeren worden de bij u gemeente behorende tarieven ingesteld.
C9: Samenvatting:
C11: Dit "Rekenblad" is een uitgave van de Vereniging van Nederlandse Gemeenten en is gebaseerd op:
C12: "RICHTLIJN tarieven (graaf) werkzaamheden Telecom", uitgegeven: 12 maart 2004.
C14: Richtlijn voor gemeenten en aanbieders van telecom diensten ten behoeve van het berekenen van tarieven voor herstel, onderhoud, beheer- en
C15: degeneratiekosten bij (graaf)werkzaamheden door aanbieders, in openbare gronden die in eigendom of beheer zijn van gemeenten.
B17: - | C17: De Richtlijn bevat: | E17: definities, rekenmethodiek en tarieven
B19: - | C19: In de tarieven wordt geen onderscheid gemaakt tussen lasgaten en sleuven. Alle werkzaamheden worden berekend per vierkante meter.
C20: De degeneratie vergoeding wordt verrekend per strekkende meter.
B21: - | C21: Bij de berekening van de degeneratie vergoeding wordt gebruik gemaakt van de per 1 januari 2001 gehanteerde berekenwijze voor de
C22: maatstaf bodemgesteldheid ten behoeve van de algemene uitkering uit het gemeentefonds. De bodempercentages t.g.v. samenvoegingen van gemeenten
C23: zijn berekend tot 1 januari 2009
B24: - | C24: De wijze van de sleufbreedte is als volgt gedefinieerd:
D25: - de werkelijke sleufbreedte, deze wordt tijdens de uitvoering gemeten
D26: * de werkelijke sleufbreedte wordt ingevoerd in het rekenblad
D27: * het rekenblad berekent de gatvergroting ( tegels, klinkers aan beide zijden van de sleuf )
D28: * de gatvergroting wordt niet in oppervlak uitgedrukt maar is 20% van de uitvoeringskosten
D29: Geen sleufbreedte gemeten
D30: - de gemiddelde breedte van het grondverzet, gemeten als breedte van de toegepaste graafbak, naar boven afgerond op 5 cm,
D31: - met een minimum breedte voor tegelverharding van 30 cm en voor klinkerverharding van 20 cm.
B32: - | C32: In de "Richtlijn" is aangegeven wanneer de sleuf door de aanbieder moet worden gedicht en onder welke voorwaarden dit is toegestaan.
B33: - | C33: De werkzaamheden die de gemeente verricht en waarvoor bij het verlenen van het instemmingbesluit leges worden geheven, vallen niet
C34: onder de berekening van de beheerskosten in deze "Richtlijn".
B35: - | C35: In de rekenmethodiek van de "Richtlijn"zijn nu ook groenvoorzieningen opgenomen.
B36: - | C36: De "Richtlijn"bevat nu ook een degeneratievergoeding voor tegelverharding.
B37: - | C37: Voor gefundeerde verharding en voor groenvoorzieningen wordt geen degeneratievergoeding berekend.
B38: - | C38: De "Richtlijn"is van toepassing op het herstel van opgebroken bestrating.
B39: - | C39: Voor gesloten verhardingen zoals afalt, cemenbeton, grootschalige en kleinschalige verhardings elementen, plantsoenen en bomen,
C40: dienen tussen de gemeente en de aanbieder op projektniveau, of zo mogelijk generiek, afspraken te worden gemaakt. Voor de verrekening
C41: kan het "rekenblad" worden gebruikt.
B42: - | C42: Op de tarieven is indexering van toepassing. Jaarlijks zal door de VNG een geïndexeerd "Rekenblad" tijdig ter beschikking worden gesteld.
C44: Toepassing:
B45: - | C45: De VNG en een representatieve vertegenwoordiging van de Telcomsector hebben als: "Packed deal"overeenstemming bereikt over de rekenmethodiek
C46: en de tarieven van de "Richtlijn", die integraal behoort te worden toegepast.
C48: Aanvullende Informatie:
C49: Nadere uitleg n.a.v. vragen uit het land:
C51: 1. Vraag: waarom is het bermtarief van 1 m2 t/m 50 m2 altijd circa 100 € ?
C52: Antwoord: het voorrijtarief van de cultuurtechnische medewerker is 100 €.
C53: Boven de 50 m2 wordt het bermtarief per m2 berekend. Het is ook mogelijk geen gebruik te maken van dit tarief.
C54: 2. Vraag: wat mag je bij elkaar rekenen?
C55: Antwoord: Per project is het aantal m2 bepalend voor de toepassing van tarief <15 m2 of >15 m2.
C56: Daarbij mogen tegel- en klinkeroppervlakken niet bij elkaar opgeteld worden.
C57: Meerdere kleine opbrekingen binnen 10 m (zoals huisaansluitingen) worden aangemerkt als één reparatie.
